Cogmind - Beta 16 @@@ ROGUE MODE // 2026.02.08 @ 02:59:22 Player: spider Result: Destroyed by H-88 Terminator with KE Penetrator Performance ------------- Evolutions (8) 4000 Regions Visited (32) 6400 Robots Destroyed (351) 1755 Value Destroyed (14429) 14429 Prototype IDs (54) 1080 Alien Tech Used (2) 400 Bonus (8585) 8585 TOTAL SCORE: 36649 Bonus ------- Triggered High Security 500 High Alert Combat Kills 1785 Follower Combat Kills 2825 Entered Garrisons 400 Used RIF Installer 500 Network Hubs Disabled 400 Registered with UFD 300 Met Optimus in HQ 500 Met Zhirov 300 Met R17 at Cetus 500 Met R17 at Research 2000 Friendly Fire -1425 Cogmind --------- Core Integrity 0/1450 Matter 172/300 Energy 84/100 System Corruption 39% Temperature Cool (0) Movement Hovering (46) Location -2/Testing Parts ------- > --- POWER (2) -------- (None) > --- PROPULSION (7) --- Cooled Gravmag System > --- UTILITY (11) ----- (None) > --- WEAPON (3) ------- (None) > --- INVENTORY (5) ---- Dimensional Node Initializer High-powered Transdimensional Reconstructor Subatomic Replicator Core Cannon Peak State ------------ > --- POWER ------------ Particle Reactor Light Quantum Reactor > --- PROPULSION ------- Cooled Gravmag System Combat Gravmag System Combat Gravmag System Combat Gravmag System Combat Gravmag System Combat Gravmag System Combat Antigrav System > --- UTILITY ---------- Experimental Cooling System High-capacity Storage Unit Deep Structural Scanner Experimental Optical Array Seismic Detector Weapon Mount Core Analyzer Centrium Light Armor Plating Centrium Light Armor Plating Improved Hacking Suite Advanced Hacking Suite > --- WEAPON ----------- Enhanced Nova Cannon Perforator > --- INVENTORY -------- Light Quantum Reactor Cooled Gravmag System Cooled Gravmag System Cooled Antigrav System Advanced Transmission Jammer ECM Suite Experimental Cloaking Device Graphene Brace Dimensional Node Initializer High-powered Transdimensional Reconstructor Subatomic Replicator Cooled Proton Cannon Enhanced Nova Cannon Core Cannon Compact Mass Driver Enhanced Hardcell Cannon Compact Tesla Bomb Launcher Rocket Array [Rating: 174] Favorites ----------- Power Antimatter Reactor Engine Heavy Ion Engine Power Core Enhanced Nuclear Core Reactor Antimatter Reactor Propulsion Light Treads Treads Light Treads Wheel Wheel Hover Unit Combat Gravmag System Flight Unit Improved VTOL Module Utility Huge Storage Unit Device Cooling System Storage Huge Storage Unit Processor Enhanced Optical Array Hackware Hacking Suite Protection Hardened Medium Armor Plating Weapon Heavy Particle Cannon Energy Gun Improved Spread Laser Energy Cannon Heavy Particle Cannon Ballistic Gun Heavy Assault Rifle Ballistic Cannon Enhanced Hardcell Cannon Launcher Compact Tesla Bomb Launcher Special Weapon CPS Tube Impact Weapon Makeshift Hammer Slashing Weapon Power Sword Piercing Weapon Makeshift Spear Special Melee Weapon Improved Datajack Build | -11 -10 -10 -9 -9 -9 -8 -8 -8 -8 -7 -7 -7 -7 -5 -5 -5 -5 -5 -5 -4 -4 -4 -4 -4 -4 -4 -4 -3 -3 -3 -2 -2 ------- Run | Yrd Mat Min Mat Min Exi Min Mat Gar Mat Fac Sto Rec Scr Fac Was Fac Upp Upp Zhi Pro Fac Was Fac Ext Cet Arc Hub Res Qua Gar Res Tes Slots Evolved 16 | . . . 2 . . . 2 . . 2 . . . 4 . . . . . . 2 . . . . . . 2 . . 2 . Power 1 | . . . . . . . . . . . . . . 1 . . . . . . . . . . . . . . . . . . Propulsion 5 | . . . 1 . . . . . . 1 . . . 2 . . . . . . 1 . . . . . . . . . . . Utility 9 | . . . 1 . . . 2 . . 1 . . . 1 . . . . . . 1 . . . . . . 2 . . 1 . Weapon 1 | . . . . . . . . . . . . . . . . . . . . . . . . . . . . . . . 1 . Parts Attached 264 | 6 7 3 23 2 . 2 18 1 18 5 36 6 8 18 4 1 1 . 2 1 12 13 7 6 4 4 3 21 7 3 5 17 Power 29 | 1 . 1 2 . . . 1 . 2 . 4 . . . 1 . 1 . . . . 3 3 . . . . 3 . 1 2 4 Engine 8 | 1 . . 2 . . . 1 . 1 . 2 . . . . . . . . . . . 1 . . . . . . . . . Core 8 | . . 1 . . . . . . 1 . 2 . . . . . 1 . . . . 1 . . . . . . . . . 2 Reactor 13 | . . . . . . . . . . . . . . . 1 . . . . . . 2 2 . . . . 3 . 1 2 2 Propulsion 68 | 2 1 . 10 2 . 1 9 1 3 5 10 . 2 6 . . . . . . 3 6 1 . . . . 3 1 . . 2 Treads 41 | 2 . . 10 2 . 1 6 1 3 5 9 . 1 1 . . . . . . . . . . . . . . . . . . Leg . | . . . . . . . . . . . . . . . . . . . . . . . . . . . . . . . . . Wheel 1 | . . . . . . . . . . . . . . 1 . . . . . . . . . . . . . . . . . . Hover 15 | . . . . . . . 1 . . . . . . 1 . . . . . . . 6 1 . . . . 3 1 . . 2 Flight 11 | . 1 . . . . . 2 . . . 1 . 1 3 . . . . . . 3 . . . . . . . . . . . Utility 100 | 1 3 1 6 . . . 6 . 7 . 10 3 4 10 3 1 . . 2 . 7 3 2 4 3 4 2 8 3 2 1 4 Device 38 | . 1 1 2 . . . 2 . 2 . 3 3 4 6 1 . . . . . 2 2 1 1 . 3 . 3 1 . . . Storage 9 | 1 2 . 1 . . . . . . . . . . 1 . . . . 1 . 1 . . . . . . 1 . 1 . . Processor 4 | . . . . . . . . . . . . . . 2 . . . . . . . . . . . . . . . 1 1 . Hackware 14 | . . . . . . . . . . . 1 . . 1 2 1 . . . . 3 . . . . 1 2 1 . . . 2 Protection 35 | . . . 3 . . . 4 . 5 . 6 . . . . . . . 1 . 1 1 1 3 3 . . 3 2 . . 2 Artifact . | . . . . . . . . . . . . . . . . . . . . . . . . . . . . . . . . . Weapon 67 | 2 3 1 5 . . 1 2 . 6 . 12 3 2 2 . . . . . 1 2 1 1 2 1 . 1 7 3 . 2 7 Energy Gun 4 | . . . . . . . . . . . 2 1 . . . . . . . . . . . . . . . . . . . 1 Energy Cannon 13 | . . . 2 . . . 2 . . . 1 1 . . . . . . . . . . . . . . . 4 . . 2 1 Ballistic Gun 22 | 2 2 . 3 . . . . . 5 . 5 . . . . . . . . . 1 . . . 1 . . 1 . . . 2 Ballistic Cannon 8 | . . . . . . . . . . . . . . . . . . . . . 1 1 1 1 . . 1 1 1 . . 1 Launcher 10 | . . 1 . . . 1 . . 1 . 3 . . . . . . . . . . . . 1 . . . 1 1 . . 1 Special Weapon 4 | . 1 . . . . . . . . . . . . 2 . . . . . . . . . . . . . . . . . 1 Impact Weapon 1 | . . . . . . . . . . . . . . . . . . . . 1 . . . . . . . . . . . . Slashing Weapon 3 | . . . . . . . . . . . 1 . 1 . . . . . . . . . . . . . . . 1 . . . Piercing Weapon 1 | . . . . . . . . . . . . . 1 . . . . . . . . . . . . . . . . . . . Special Melee Weapon 1 | . . . . . . . . . . . . 1 . . . . . . . . . . . . . . . . . . . . Unidentified Prototypes 33 | . 1 . 3 . . . 2 . . . 7 . . . 3 . . . 3 . 1 1 2 . 2 . . 2 1 . . 5 Corrupted Parts 7 | . . . . . . . . . . . 1 . . . 1 . . . . . . . . . 1 . . . . . . 4 System Corruption 60 | . . . . . . . . . . . 12 . . . 6 . . . . . . . . . 15 . . . . . . 27 Parts Lost 67 | . . 1 1 . . 1 3 . 4 . 16 5 . 2 . . . 2 . 1 . . 1 3 . . . . 1 2 . 24 Power 16 | . . 1 . . . . 1 . . . 3 1 . 1 . . . 1 . . . . 1 . . . . . . 1 . 6 Propulsion 11 | . . . . . . . . . . . 3 1 . . . . . . . . . . . . . . . . . . . 7 Utility 24 | . . . . . . . 1 . 3 . 8 2 . 1 . . . . . . . . . 2 . . . . . 1 . 6 Weapon 16 | . . . 1 . . 1 1 . 1 . 2 1 . . . . . 1 . 1 . . . 1 . . . . 1 . . 5 Highest Loss Streak 24 | . . 1 1 . . 1 1 . 3 . 3 3 . 1 . . . 2 . 1 . . 1 2 . . . . 1 1 . 24 To Critical Strikes . | . . . . . . . . . . . . . . . . . . . . . . . . . . . . . . . . . Average Backups 20 | 3 15 23 24 25 25 24 24 24 24 23 24 24 23 14 10 10 10 10 10 9 13 13 14 14 15 14 14 15 19 18 18 17 Power . | . 1 1 1 1 1 1 . . 1 1 . . . . . . . . . . . 1 1 1 1 1 1 1 1 . . . Propulsion 6 | 1 5 7 9 9 9 9 11 11 10 9 7 6 5 1 1 1 1 1 1 1 4 2 1 2 2 2 2 2 2 2 2 2 Utility 7 | . 5 8 8 7 8 8 7 7 8 9 9 10 9 7 7 7 7 7 7 7 6 6 8 8 7 8 8 7 9 6 5 4 Weapon 4 | . 4 5 5 5 6 5 4 4 4 3 5 5 6 2 1 1 1 1 1 . 2 2 2 2 2 2 2 4 4 6 6 6 Tool/Special . | . . . . . . . . . . . . . . . . . . . . . . . . . . . . . . . . . Unused Backups 65 | . 1 . 12 . 1 1 6 . 7 3 3 1 1 6 . . . . . . 1 1 2 . 2 1 . 4 3 . 2 7 Power 4 | . . . . . . 1 . . 1 . . . . . . . . . . . . . . . . 1 . . . . 1 . Propulsion 21 | . . . 4 . . . 3 . 1 3 3 . 1 1 . . . . . . . 1 1 . 2 . . . . . . 1 Utility 21 | . . . 6 . 1 . . . 1 . . . . 4 . . . . . . 1 . 1 . . . . 3 2 . 1 1 Weapon 13 | . 1 . 2 . . . 3 . 4 . . . . . . . . . . . . . . . . . . 1 . . . 2 Tool/Special 6 | . . . . . . . . . . . . 1 . 1 . . . . . . . . . . . . . . 1 . . 3 Average Slot Usage (%) 96 | . 98 99 98 100 100 100 99 100 98 91 87 97 94 88 96 100 99 97 89 90 84 95 100 99 98 99 100 99 93 92 91 82 Engine 4 | . 14 5 10 11 11 11 8 9 3 7 2 . . 1 . . . . . . . . . . . . . . . . . . Core 2 | . . 7 . . . . . . 5 . 4 6 6 5 5 5 4 3 . . . 2 . . . . . . . . . . Reactor 2 | . . . . . . . . . . . . . . . 2 5 5 5 5 5 5 7 10 10 10 10 10 9 9 8 8 6 Treads 20 | . 27 28 32 33 33 33 26 27 27 30 29 30 27 5 . . . . . . . . . . . . . . . . . . Hover 7 | . . . . . . . . . . . . . . . . . . . . . . 21 34 36 36 36 36 32 33 33 30 26 Flight 2 | . . . . . . . . . . . . . . 22 35 35 35 35 35 35 31 12 1 . . . . . . . . . Device 13 | . 13 14 11 11 11 11 13 9 11 14 7 14 21 17 8 5 5 5 4 5 7 9 10 12 15 19 18 22 21 10 16 15 Storage 8 | . 14 14 11 11 11 11 9 9 9 7 7 7 6 5 5 5 5 5 5 5 5 5 5 5 5 5 5 4 4 4 4 3 Processor 1 | . . . . . . . . . . . . . . 1 5 5 5 5 5 5 5 5 5 5 5 5 5 4 4 8 8 7 Hackware 4 | . . . . . . . . . . . 5 7 7 8 13 17 17 17 17 17 12 15 15 10 5 5 7 9 9 9 8 8 Protection 10 | . . . 10 11 11 11 22 27 23 15 12 12 6 3 5 4 5 5 5 5 9 4 5 6 10 5 5 5 5 8 8 6 Energy Cannon 5 | . . . 4 22 22 21 17 17 12 . . 1 . . . . . . . . . . . . . . . 4 1 2 4 2 Ballistic Gun 7 | . 27 27 17 . . . . . 4 15 9 4 5 2 . . . . . . . . . . . 5 2 . . . . . Ballistic Cannon 1 | . . . . . . . . . . . . . . . . . . . . . . 3 9 9 6 5 7 3 . 2 . . Peak Build Rating 174 | 6 13 17 23 23 23 23 34 31 44 48 51 46 51 75 78 81 79 79 77 78 103 124 135 133 136 136 127 152 170 149 167 174 Average Rating 55 | 5 10 14 21 23 23 22 29 30 33 46 44 43 45 58 70 77 77 77 72 72 92 111 128 128 129 129 125 143 147 140 155 138 On Entrance 72 | . 6 12 17 23 23 23 23 31 31 44 48 42 45 46 63 76 78 79 70 74 75 101 122 131 126 136 127 123 139 153 141 160 Avg Prop Armor Cover (%) 11 | . . . . . . . . . . . . . 34 1 . . . . . . . 1 . . . . . . . . . . Naked Turns 11 | . . . . . . . . . . . . . . . . . . . . . . . . . . . . . . . . 11 Heaviest Build 128 | 12 90 92 108 108 108 108 126 120 126 125 128 111 109 102 36 33 37 31 27 27 53 79 88 97 98 93 89 102 116 104 102 111 Greatest Support 105 | 40 40 40 60 60 60 60 63 63 63 80 88 80 88 88 33 33 33 33 33 33 45 89 101 101 101 101 101 105 104 104 104 105 Greatest Overweight (x) 9 | . 2 2 2 1 1 1 2 1 2 1 2 1 3 9 1 . 1 . . . 1 . . . . . . . 1 . . 3 Average Overweight (x) . | . 1 2 1 1 1 1 1 1 1 1 1 1 . . . . . . . . . . . . . . . . . . . . Largest Inventory Capacity 25 | 8 25 25 25 25 25 25 25 25 25 25 25 25 25 25 10 10 10 10 10 10 15 15 15 15 15 15 15 20 20 20 20 20 Average Capacity 21 | 7 20 25 25 25 25 25 25 25 25 25 25 25 24 15 10 10 10 10 10 10 14 15 15 15 15 15 15 15 20 20 20 19 Most Carried 25 | 6 22 25 25 25 25 25 25 25 25 25 25 25 25 25 10 10 10 10 10 10 15 15 15 15 15 15 15 20 20 20 20 20 Average Carried 20 | 4 15 23 24 24 25 24 24 24 24 24 24 24 23 14 10 10 10 10 9 9 14 14 14 14 14 14 14 15 19 19 19 18 Final Capacity 25 | 8 25 25 25 25 25 25 25 25 25 25 25 25 25 10 10 10 10 10 10 10 15 15 15 15 15 15 15 20 20 20 20 5 Final Carried 25 | 6 22 25 25 25 25 25 24 25 25 25 25 23 25 10 10 10 10 10 10 10 15 15 15 15 15 15 14 20 20 20 20 5 Class Distribution -------------------- 31% | Mutant 21% | Scavenger-Mutant 15% | Commander-Mutant 14% | Hacker-Mutant 9% | Scientist-Mutant 7% | Hacker-Sprinter Dominant Class ---------------- Mutant | -10/Materials Mutant | -10/Mines Scavenger-Mutant | -9/Materials Mutant | -9/Mines Mutant | -9/Exiles Mutant | -8/Mines Mutant | -8/Materials Scientist-Mutant | -8/Garrison Scientist-Mutant | -8/Materials Scavenger-Mutant | -7/Factory Scavenger-Mutant | -7/Storage Scavenger-Mutant | -7/Recycling Commander-Mutant | -7/Scraptown Hacker-Sprinter | -5/Factory Hacker-Sprinter | -5/Waste Hacker-Sprinter | -5/Factory Hacker-Sprinter | -5/Upper Caves Hacker-Sprinter | -5/Upper Caves Hacker-Sprinter | -5/Zhirov Hacker-Sprinter | -4/Proximity Caves Hacker-Sprinter | -4/Factory Hacker-Mutant | -4/Waste Hacker-Mutant | -4/Factory Commander-Mutant | -4/Extension Commander-Mutant | -4/Cetus Scavenger-Mutant | -4/Archives Hacker-Mutant | -4/Hub_04(d) Hacker-Mutant | -3/Research Hacker-Mutant | -3/Quarantine Hacker-Mutant | -3/Garrison Hacker-Mutant | -2/Research Hacker-Mutant | -2/Testing Resources | -11 -10 -10 -9 -9 -9 -8 -8 -8 -8 -7 -7 -7 -7 -5 -5 -5 -5 -5 -5 -4 -4 -4 -4 -4 -4 -4 -4 -3 -3 -3 -2 -2 ----------- Run | Yrd Mat Min Mat Min Exi Min Mat Gar Mat Fac Sto Rec Scr Fac Was Fac Upp Upp Zhi Pro Fac Was Fac Ext Cet Arc Hub Res Qua Gar Res Tes Matter Collected 11253 | 333 361 159 723 38 . 147 438 118 947 . 1824 276 34 425 . 277 154 41 60 130 156 469 368 1161 376 363 56 466 111 432 123 687 Remotely . | . . . . . . . . . . . . . . . . . . . . . . . . . . . . . . . . . Salvage Created 14493 | 179 446 207 1111 288 . 154 771 171 1424 . 2218 449 . 281 . 271 79 . 320 123 156 . 404 1366 690 482 . 658 535 536 217 957 Parts 784 | 13 30 13 95 27 . 7 48 16 108 . 118 21 . 13 . 11 4 . 3 4 . . 8 54 33 34 . 21 25 21 13 44 Haulers Intercepted 21 | . 1 . 5 . . . 3 . 2 . 6 . . . . . . . . . . . 1 . . . . 3 . . . . Recyclers Shooed 4 | . . . . . . . . . 1 . . . . . . . . . . . . . 1 1 . . . 1 . . . . Parts Field Recycled . | . . . . . . . . . . . . . . . . . . . . . . . . . . . . . . . . . Retrieved Matter . | . . . . . . . . . . . . . . . . . . . . . . . . . . . . . . . . . Parts Self-Destructed 7 | . . . . . . . . . . . . . . . . . 1 . 1 5 . . . . . . . . . . . . Prevented . | . . . . . . . . . . . . . . . . . . . . . . . . . . . . . . . . . Parts Restored . | . . . . . . . . . . . . . . . . . . . . . . . . . . . . . . . . . Kills | -11 -10 -10 -9 -9 -9 -8 -8 -8 -8 -7 -7 -7 -7 -5 -5 -5 -5 -5 -5 -4 -4 -4 -4 -4 -4 -4 -4 -3 -3 -3 -2 -2 ------- Run | Yrd Mat Min Mat Min Exi Min Mat Gar Mat Fac Sto Rec Scr Fac Was Fac Upp Upp Zhi Pro Fac Was Fac Ext Cet Arc Hub Res Qua Gar Res Tes Combat Hostiles Destroyed 244 | . 9 7 25 11 . 7 18 10 27 . 41 5 . 6 . . 4 . . 5 . . 4 21 8 1 . 6 7 8 3 11 Melee 3 | . . . . . . . . . . . . 1 . 1 . . . . . 1 . . . . . . . . . . . . Guns 70 | . 9 5 15 . . . . . 7 . 30 3 . . . . . . . . . . . . . 1 . . . . . . Cannons 66 | . . . 2 11 . 1 8 2 10 . 1 . . . . . . . . . . . 3 12 . . . 3 2 . 3 8 AOE 84 | . . 2 8 . . 6 9 8 10 . 9 . . 5 . . 4 . . 4 . . 1 5 2 . . 2 2 5 . 2 Classes Destroyed 20 | 3 6 . 2 . . 1 2 . 2 . 1 1 . . . . . . . . . . . . . . . 1 . . . 1 Worker 23 | 1 . 1 6 . . . 2 . 1 . 7 . . 1 . 1 . . . . . . . . . . . 1 . . . 2 Builder 17 | . 1 . 2 . . . . . 2 . 5 1 . . . 1 . . . . . . . 3 . . . . . . . 2 Tunneler 7 | 5 . . . . . 1 . . . . . . . 1 . . . . . . . . . . . . . . . . . . Hauler 21 | . 1 . 5 . . . 3 . 2 . 6 . . . . . . . . . . . 1 . . . . 3 . . . . Recycler 11 | 1 . . . . . 1 1 . 1 . . 2 . 1 . 2 . . . . 1 . 1 . . . . . . . . . Mechanic 2 | . 1 . . . . . 1 . . . . . . . . . . . . . . . . . . . . . . . . . Operator 16 | . 3 . 1 . . . . . 1 . 1 . . . . . . . . . . . . 1 . 9 . . . . . . Watcher 5 | . . . 1 . . . 1 . 1 . . . . . . . . . . . . . . . 1 . . 1 . . . . Swarmer 67 | . 2 3 11 7 . 4 6 4 2 . 10 . . 5 . . 4 . . 4 . . . . . . . 3 . 2 . . Grunt 63 | . 7 4 8 2 . 2 5 5 5 . 8 . . . . . . . . . . . 4 5 . . . . 4 2 . 2 Brawler 2 | . . . . . . 1 . . . . . . . . . . . . . . . . . 1 . . . . . . . . Duelist 2 | . . . . . . . 1 1 . . . . . . . . . . . . . . . . . . . . . . . . Researcher 1 | . . . . . . . . . . . . . . . . . . . . . . . . . . . . . . . . 1 Sentry 44 | . . . 6 2 . . 4 . . . 18 2 . . . . . . . . . . . 10 . 1 . . . . 1 . Demolisher 1 | . . . . . . . . . . . . 1 . . . . . . . . . . . . . . . . . . . . Specialist 18 | . . . . . . . . . 18 . . . . . . . . . . . . . . . . . . . . . . . Hunter 15 | . . . . . . . 2 . . . . 2 . . . . . . . . . . . 3 . . . 2 . 4 . 2 Programmer 19 | . . . . . . . . . . . 5 . . 1 . . . . . 1 . . . 1 . . . . 3 . 2 6 Heavy 2 | . . . . . . . . . 2 . . . . . . . . . . . . . . . . . . . . . . . Behemoth 1 | . . . . . . . . . . . . . . . . . . . . . . . . . . . . 1 . . . . Cetus Guard 8 | . . . . . . . . . . . . . . . . . . . . . . . . . 8 . . . . . . . Protovariant H 1 | . . . . . . . . . . . . . . . . . . . . . . . . . . . . . . . . 1 Thug 2 | . . . . . . . . . . . . . . . . . . . . . . . 1 1 . . . . . . . . Savage 1 | . . . . . . . . . . . . . . . . . . . . . . . . . . 1 . . . . . . Martyr 2 | . . . . . . . . . . . . . . . . . . . . . . . 2 . . . . . . . . . Best Kill Streak 9 | 3 2 5 7 4 . 4 9 4 4 . 9 3 . 5 . 3 4 . . 4 1 . 3 5 5 5 . 3 3 8 2 7 Combat Bots Only 8 | . 2 3 6 4 . 4 7 4 4 . 6 1 . 5 . . 4 . . 4 . . 3 5 4 1 . 2 3 8 2 4 Max Kills in Single Turn 4 | 1 1 1 4 1 . 2 3 2 3 . 2 1 . 3 . 1 4 . . 4 1 . 2 3 2 1 . 2 1 1 1 2 Gunslinging 1 | . . . . . . . . . . . 1 . . . . . . . . . . . . . . . . . . . . . Exploded 4 | . . 1 4 . . 2 2 2 2 . 2 . . 3 . . 4 . . 4 . . 1 3 1 . . 2 1 1 . 1 Melee 1 | . . . . . . . . . . . . 1 . 1 . . . . . 1 . . . . . . . . . . . . Uniques/NPCs Destroyed . | . . . . . . . . . . . . . . . . . . . . . . . . . . . . . . . . . Combat | -11 -10 -10 -9 -9 -9 -8 -8 -8 -8 -7 -7 -7 -7 -5 -5 -5 -5 -5 -5 -4 -4 -4 -4 -4 -4 -4 -4 -3 -3 -3 -2 -2 -------- Run | Yrd Mat Min Mat Min Exi Min Mat Gar Mat Fac Sto Rec Scr Fac Was Fac Upp Upp Zhi Pro Fac Was Fac Ext Cet Arc Hub Res Qua Gar Res Tes Hostile Shots Fired 2356 | . 44 31 101 47 . 32 94 19 131 11 985 96 . 40 . . 2 2 . 21 24 . 15 74 23 1 . 11 118 40 43 351 Missed 846 | . 11 10 31 10 . 10 27 3 41 4 355 38 . 13 . . . . . 10 11 . 8 41 14 1 . 5 51 19 20 113 Hits 1510 | . 33 21 70 37 . 22 67 16 90 7 630 58 . 27 . . 2 2 . 11 13 . 7 33 9 . . 6 67 21 23 238 Melee 3 | . . . . . . . . 2 1 . . . . . . . . . . . . . . . . . . . . . . . Projectile 1507 | . 33 21 70 37 . 22 67 14 89 7 630 58 . 27 . . 2 2 . 11 13 . 7 33 9 . . 6 67 21 23 238 AOE 5 | . . . . . . . . . 3 . 1 . . . . . . . . . . . . 1 . . . . . . . . Critical Strikes 42 | . . 1 3 . . 1 3 2 3 . 5 . . . . . . . . . 1 . . 1 2 . . . 4 1 4 11 Actively Blocked 8 | . . . . . . . . . . . . . . . . . . . . . . . . . . . . . . . . 8 Part Disruptions 4 | . . . . . . . . . . . . . . . . . . . . . . . . . . . . . 1 . . 3 Damage Taken 21957 | . 350 279 883 439 . 384 963 270 2047 65 5316 473 . 468 . . 26 51 . 204 254 . 250 802 277 29 . 266 1544 443 552 5322 Core 2948 | . 17 27 130 10 . 80 61 . 258 11 329 17 . 142 . . 13 . . 66 60 . 21 69 . . . 45 85 40 75 1392 Absorbed by Shields 561 | . . . . . . . . 9 . . 403 44 . . . . . . . . . . . 105 . . . . . . . . Redirected to Shielding 223 | . . . . . . . . . . . . . . 36 . . . . . 35 13 . . 32 . . . . 69 38 . . Ignored by Resistances 159 | . . . . . . . . . 24 3 132 . . . . . . . . . . . . . . . . . . . . . Regen/Repaired (Parts) 1481 | . 152 . . . . . 89 . 206 . 565 . . . . . . . . . . 101 49 . . . . 79 58 . . 182 Core Remaining (%) 70 | 100 . 82 . . . 45 . . 42 . . . 49 . . . . . . 77 . . . . . . 86 . . 86 . . Volleys Fired 877 | 13 48 19 69 32 . 14 60 25 80 1 167 17 . 2 . . 1 . . 2 4 17 21 67 9 51 2 37 23 21 23 52 Largest 2 | 2 2 2 2 2 . 2 2 2 2 2 2 2 . 1 . . 1 . . 1 1 1 2 2 1 2 1 2 2 1 2 2 Hottest 240 | 40 100 46 91 143 . 143 150 150 150 56 116 155 . 45 . . 45 . . 45 51 51 113 113 80 93 58 226 226 113 233 240 Shots Fired 1385 | 26 94 34 135 50 . 20 93 30 139 2 307 37 . 2 . . 1 . . 2 4 18 34 109 9 54 2 47 28 22 29 57 Gun 692 | 26 92 30 129 . . . . . 48 2 278 29 . . . . . . . . . . . . . 50 . . . . . 8 Cannon 549 | . . . 4 50 . 10 78 18 70 . 13 8 . . . . . . . . 4 18 33 92 . 4 2 45 24 5 29 42 Launcher 141 | . . 4 2 . . 10 15 12 21 . 16 . . 2 . . 1 . . 2 . . 1 17 9 . . 2 4 17 . 6 Special 3 | . 2 . . . . . . . . . . . . . . . . . . . . . . . . . . . . . . 1 Kinetic 804 | 26 92 30 129 . . . . . 48 2 240 11 . . . . . . . . 4 18 33 92 . 54 2 10 . 1 . 12 Thermal 420 | . 2 . 4 50 . 10 78 18 70 . 38 26 . . . . . . . . . . . . . . . 35 24 4 28 33 Explosive 90 | . . 4 2 . . 10 15 12 21 . 16 . . 2 . . 1 . . 2 . . 1 3 . . . . . . . 1 Electromagnetic 70 | . . . . . . . . . . . 13 . . . . . . . . . . . . 14 9 . . 2 4 17 1 10 Robot Hit Streak 34 | 4 11 6 12 6 . 5 11 9 12 . 21 11 . . . . . . . 1 . 13 21 34 4 7 . 11 15 16 24 14 Robot Miss Streak 9 | 1 4 3 3 3 . 2 3 3 3 . 7 4 . . . . . . . 2 . 1 1 3 . 3 . 2 . . 1 9 Penetration Max 1 | . . . . . . . . . 1 . 1 . . . . . . . . . . . . . . 1 . . . . . 1 Secondary Targets 7 | . 1 . 2 . . . . . 1 . 3 . . . . . . . . . . . . . . . . . . . . . Max Gunslinging Chain 1 | . 1 . 1 . . . . . 1 . 1 . . . . . . . . . . . . . . . . . . . . . Shots Hit Robots 838 | 15 57 20 87 21 . 12 47 10 73 . 216 36 . 7 . 7 . . 8 3 3 13 29 61 1 35 . 21 14 1 12 29 Core Hits 643 | 8 19 12 51 12 . 12 37 16 52 . 131 20 . 8 . 4 8 . 3 7 . . 18 74 48 22 . 18 10 15 3 35 Critical Kills 16 | 1 . 1 . . . . . . 3 . 1 . . . . . . . . . . . . . . 5 . 2 1 . . 2 Critical Parts Destroyed 14 | . 1 . 1 . . . . . . . . . . . . . . . . . . . . . . 5 . . . . . 7 Critical Strikes 43 | 1 1 1 1 . . . . . 3 . 2 . . 1 . . . . . . . . . 10 . 10 . 3 1 . . 9 Meltdown 3 | . . . . . . . . . . . . . . . . . . . . . . . . . . . . 2 1 . . . Destroy 28 | 1 1 1 1 . . . . . 3 . 2 . . . . . . . . . . . . . . 10 . . . . . 9 Blast 11 | . . . . . . . . . . . . . . . . . . . . . . . . 10 . . . 1 . . . . Sever 1 | . . . . . . . . . . . . . . 1 . . . . . . . . . . . . . . . . . . Melee Attacks 104 | . . . . . . . . . . . 9 7 . 29 . 19 3 5 8 5 8 . 6 . . . . . 5 . . . Impact 12 | . . . . . . . . . . . . . . . . . . . . . 6 . 6 . . . . . . . . . Slashing 90 | . . . . . . . . . . . 9 6 . 28 . 19 3 5 8 5 2 . . . . . . . 5 . . . Piercing . | . . . . . . . . . . . . . . . . . . . . . . . . . . . . . . . . . Sneak Attacks 22 | . . . . . . . . . . . . 5 . 4 . 5 . . . . 2 . 6 . . . . . . . . . Combat Hostiles . | . . . . . . . . . . . . . . . . . . . . . . . . . . . . . . . . . Follow-up Attacks . | . . . . . . . . . . . . . . . . . . . . . . . . . . . . . . . . . Damage Inflicted 35414 | 196 868 516 2406 542 . 830 2032 950 3118 . 5658 1086 . 662 . 565 101 . 724 297 263 465 2057 4000 1343 1144 . 1151 1013 942 581 1904 Guns 9200 | 193 842 280 1327 . . . . . 666 . 4273 520 . . . . . . . . . . . . . 1011 . . . . . 88 Cannons 10316 | . . . 44 504 . 198 1034 125 1079 . 241 150 . . . . . . . . . 465 736 2629 . 133 . 956 492 . 552 978 Explosions 12641 | . . 204 924 21 . 555 933 825 1334 . 1123 . . 307 . . 101 . . 220 . . 905 1371 1343 . . 195 500 942 . 838 Melee 2763 | . . . . . . . . . . . . 363 . 355 . 565 . . 724 77 263 . 416 . . . . . . . . . Ramming 494 | 3 26 32 111 17 . 77 65 . 39 . 21 53 . . . . . . . . . . . . . . . . 21 . 29 . Kinetic 12248 | 193 842 280 1327 . . . . . 666 . 3432 122 . . . . . . . . . 465 736 2629 . 1144 . 270 . . . 142 Thermal 7166 | . . . 44 525 . 198 1034 125 1079 . 841 548 . . . . . . . . . . . . 97 . . 686 492 105 545 847 Explosive 8561 | . . 204 924 . . 555 933 825 1334 . 1123 . . 307 . . 101 . . 220 . . 905 824 . . . . . . . 306 Electromagnetic 4182 | . . . . . . . . . . . 241 . . . . . . . . . . . . 547 1246 . . 195 500 837 7 609 Impact 533 | . . . . . . . . . . . . . . . . . . . . . 117 . 416 . . . . . . . . . Slashing 2230 | . . . . . . . . . . . . 363 . 355 . 565 . . 724 77 146 . . . . . . . . . . . Piercing . | . . . . . . . . . . . . . . . . . . . . . . . . . . . . . . . . . Highest Corruption 39 | . . . . . . . . . . . 21 21 . 3 14 14 14 14 14 16 3 3 4 4 19 19 . . 12 12 3 39 Average Corruption 9 | . . . . . . . . . . . 3 21 . 2 7 14 14 14 14 15 2 3 3 4 6 14 . . 7 12 2 8 Corruption Purged 19 | . . . . . . . . . . . . . . . . . . . . . . . . . . 19 . . . . . . Corruption Blocked . | . . . . . . . . . . . . . . . . . . . . . . . . . . . . . . . . . Effects 295 | . . . . . . . . . . . 30 76 . 2 1 9 13 16 5 13 . 6 11 42 8 13 . . 12 13 . 25 Message Errors 80 | . . . . . . . . . . . 4 22 . 1 1 5 2 2 . 2 . 3 1 14 3 4 . . 6 2 . 8 Matter Fused 73 | . . . . . . . . . . . 5 19 . . . 3 5 4 1 3 . . 3 11 3 3 . . 3 4 . 6 Heat Flow Errors 24 | . . . . . . . . . . . 3 7 . . . . 2 1 3 1 . . . 2 . 1 . . . 2 . 2 Energy Discharges 38 | . . . . . . . . . . . 6 12 . . . 1 1 2 . 4 . 1 3 1 1 1 . . 1 1 . 3 Parts Rejected 6 | . . . . . . . . . . . 2 . . 1 . . . . . . . . . 1 . . . . . . . 2 Parts Fused 7 | . . . . . . . . . . . 1 1 . . . . 2 1 . . . . 1 1 . . . . . . . . Data Loss (minor) 27 | . . . . . . . . . . . 2 7 . . . . 1 2 1 . . 1 2 4 1 2 . . . 1 . 3 Data Loss (major) 9 | . . . . . . . . . . . 3 1 . . . . . . . . . . 1 2 . . . . . 2 . . Misfires 12 | . . . . . . . . . . . 3 5 . . . . . . . . . 1 . 2 . . . . . 1 . . Alerts 6 | . . . . . . . . . . . 1 . . . . . . 2 . 1 . . . . . 1 . . 1 . . . Misdirections 6 | . . . . . . . . . . . . . . . . . . 2 . 2 . . . . . . . . 1 . . 1 Weapon Failures 7 | . . . . . . . . . . . . 2 . . . . . . . . . . . 4 . 1 . . . . . . Overload Shots . | . . . . . . . . . . . . . . . . . . . . . . . . . . . . . . . . . Overflow Damage 1353 | . . 16 82 5 . 51 35 51 16 . 45 84 . 125 . 136 . . 203 9 87 . 194 28 . . . 67 36 21 46 16 Projectiles 252 | . . . . 5 . . . . . . . . . . . . . . . . . . 54 28 . . . 67 36 . 46 16 Explosions 322 | . . 16 78 . . 40 25 51 16 . 45 . . . . . . . . 9 . . 21 . . . . . . 21 . . Melee 779 | . . . 4 . . 11 10 . . . . 84 . 125 . 136 . . 203 . 87 . 119 . . . . . . . . . Knockbacks 20 | . . . 1 . . 1 . . . . 1 2 . . . . . . . . 1 . 1 10 . . . . . . . 3 Impact 6 | . . . 1 . . 1 . . . . 1 2 . . . . . . . . 1 . . . . . . . . . . . Kinetic 13 | . . . . . . . . . . . . . . . . . . . . . . . 1 9 . . . . . . . 3 Secondary 1 | . . . . . . . . . . . . . . . . . . . . . . . . 1 . . . . . . . . Self-Inflicted Damage 419 | . . 20 . . . 91 . 16 15 . 119 . . . . . . . . . . . . 80 . . . . 12 6 14 46 Shots 20 | . . 1 . . . 2 . 1 1 . 4 . . . . . . . . . . . . 7 . . . . 1 1 . 2 Rammed 50 | 2 4 5 12 3 . 4 5 . 6 . 3 4 . . . . . . . . . . . . . . . . 1 . 1 . Targets Rammed 58 | 3 5 6 14 3 . 5 5 . 6 . 3 6 . . . . . . . . . . . . . . . . 1 . 1 . Kicked . | . . . . . . . . . . . . . . . . . . . . . . . . . . . . . . . . . Crushed 8 | 1 1 1 2 . . 1 . . . . . 2 . . . . . . . . . . . . . . . . . . . . Highest Temperature 348 | . 5 12 11 165 . 93 281 78 300 . 348 204 . 202 30 96 292 300 190 177 . . 101 302 . 190 . 190 . 168 190 156 Average Temperature 64 | . 5 12 11 59 . 43 76 23 94 . 103 47 . 63 13 35 64 55 64 99 . . 20 72 . 113 . 63 . 68 54 32 Received Heat Transfer 3655 | . 171 147 342 138 . 162 225 126 405 12 1298 102 . 9 . . . 9 . 9 . . 21 83 18 . . . 63 . 27 288 Effects 8 | . . . . . . . . . 2 . 4 . . . . . . 2 . . . . . . . . . . . . . . Energy Bleed 5 | . . . . . . . . . 2 . 3 . . . . . . . . . . . . . . . . . . . . . Interference 2 | . . . . . . . . . . . . . . . . . . 2 . . . . . . . . . . . . . . Damage (minor) 1 | . . . . . . . . . . . 1 . . . . . . . . . . . . . . . . . . . . . Siege Activations . | . . . . . . . . . . . . . . . . . . . . . . . . . . . . . . . . . Martial Activations . | . . . . . . . . . . . . . . . . . . . . . . . . . . . . . . . . . Shielding Activations . | . . . . . . . . . . . . . . . . . . . . . . . . . . . . . . . . . Robots Disrupted 1 | . . . . . . . . . . . . . . . . . . . . . . . . . . . . 1 . . . . Combat Hostiles 1 | . . . . . . . . . . . . . . . . . . . . . . . . . . . . 1 . . . . Robots Corrupted 21 | . . . . . . 1 1 . . . 1 . . . . . . . . . 1 . 1 4 6 . . . 2 3 . 1 Combat Hostiles 17 | . . . . . . . . . . . 1 . . . . . . . . . . . . 4 6 . . . 2 3 . 1 Parts Fried 41 | . . . . . . 4 2 . . . 4 . . . . . . . . . 1 . . 5 11 . . 2 4 6 . 2 Impact Corruptions 11 | . . . 1 . . 2 1 . . . . . . . . . . . . . 3 . 4 . . . . . . . . . Robots Melted 6 | . . . . . . . 2 . . . . 1 . . . . . . . . . . . . . . . 2 1 . . . Combat Hostiles 4 | . . . . . . . 1 . . . . 1 . . . . . . . . . . . . . . . 1 1 . . . Parts Melted 18 | . . . . . . . 1 . 5 . 1 2 . . . . . . . . . . . 1 . . . 2 2 . 2 2 Heat Transferred 9074 | . . . 74 864 . 333 1591 185 1591 . 1485 757 . . . . . . . . . . . . 50 . . 638 370 100 407 629 Parts Sabotaged . | . . . . . . . . . . . . . . . . . . . . . . . . . . . . . . . . . Parts Stolen . | . . . . . . . . . . . . . . . . . . . . . . . . . . . . . . . . . Parts Stripped . | . . . . . . . . . . . . . . . . . . . . . . . . . . . . . . . . . Power Chain Reactions 3 | . . . . . . . . . . . . . . . . . . . . . . . . 1 1 . . . . 1 . . Alert | -11 -10 -10 -9 -9 -9 -8 -8 -8 -8 -7 -7 -7 -7 -5 -5 -5 -5 -5 -5 -4 -4 -4 -4 -4 -4 -4 -4 -3 -3 -3 -2 -2 ------- Run | Yrd Mat Min Mat Min Exi Min Mat Gar Mat Fac Sto Rec Scr Fac Was Fac Upp Upp Zhi Pro Fac Was Fac Ext Cet Arc Hub Res Qua Gar Res Tes Maximum Alert Level 5 | . . . 2 . . . 1 2 2 1 3 1 . 1 . . . . . . . . 2 5 4 2 . . 1 2 1 1 Low Security (%) 55 | 100 100 100 51 100 . 100 43 10 12 64 16 47 . 57 100 100 . . . . 100 100 24 . . . 100 100 77 25 73 91 Level 1 25 | . . . 41 . . . 56 29 72 35 21 52 . 42 . . . . . . . . 15 21 . . . . 22 12 26 8 Level 2 14 | . . . 7 . . . . 60 14 . 54 . . . . . . . . . . . 59 29 . 100 . . . 62 . . Level 3 1 | . . . . . . . . . . . 7 . . . . . . . . . . . . 18 7 . . . . . . . Level 4 2 | . . . . . . . . . . . . . . . . . . . . . . . . 26 92 . . . . . . . Level 5 . | . . . . . . . . . . . . . . . . . . . . . . . . . . . . . . . . . High Security . | . . . . . . . . . . . . . . . . . . . . . . . . 3 . . . . . . . . Max Security . | . . . . . . . . . . . . . . . . . . . . . . . . . . . . . . . . . Peak Influence 1716 | 10 65 140 415 159 . 111 355 696 539 244 728 295 . 351 103 120 . . . . 96 33 618 1716 1298 682 183 100 216 440 261 227 Initial 1100 | . . . 24 142 . . . 178 339 244 59 275 . . 103 58 . . . . 84 33 . 282 1100 507 172 27 16 138 247 54 Average 235 | 2 15 28 215 62 . 24 188 449 290 183 462 194 . 136 97 91 . . . . 35 3 375 779 1203 598 137 41 141 349 115 116 Influence Increases 13536 | 35 322 224 1020 313 . 234 688 518 934 26 1400 439 . 629 . 138 165 15 15 195 131 10 1175 2390 308 285 71 344 359 342 161 650 Destroy 0b10 Robot/C 6100 | . 180 140 580 220 . 140 360 200 540 . 820 100 . 160 . . 80 . . 100 . . 320 1080 160 80 . 120 140 220 60 300 Destroy 0b10 Robot/NC 560 | 35 30 5 80 . . 10 40 . 40 . 95 25 . 15 . 20 . . 15 . 5 . 10 30 10 45 . 25 . . . 25 Destroy Leader 1194 | . 62 30 172 30 . 20 108 10 146 . 252 . . 30 . . 10 . . 20 . . 62 94 . . . 38 10 30 20 50 Allied During Kill 1620 | . . . 14 . . . . . . . . 13 . 26 . . . . . . . . 291 1013 118 74 . . . 49 4 18 Successful Hack 563 | . 17 6 14 . . . 38 42 15 11 3 57 . 58 . 6 . . . . 22 . . 20 . . 17 105 54 8 5 65 Select Force Hacks 290 | . . . . . . . . . . . . 240 . . . . . . . . . . . . . . 50 . . . . . Disable Machine 960 | . 15 15 105 45 . 15 60 45 30 15 105 . . 120 . . . . . . . . 135 . . 60 . . 90 . . 105 Anti-Garrison Action 300 | . . . . . . . . 150 . . . . . . . . . . . . . . 150 . . . . . . . . . Destroy Structure 1199 | . 3 28 40 18 . 49 82 71 133 . 110 4 . 100 . 22 . . . . 14 10 132 138 20 26 4 26 20 35 42 72 Partial Spotted 210 | . . . . . . . . . . . . . . 60 . 75 . . . . 45 . . 15 . . . . . . 15 . Lose Combat Pursuer 540 | . 15 . 15 . . . . . 30 . 15 . . 60 . 15 75 15 . 75 45 . 75 . . . . 30 45 . 15 15 Influence Decreases 13574 | 35 322 160 717 647 33 234 413 97 1092 434 823 1047 99 332 214 135 176 85 20 60 170 106 597 1252 896 1059 512 367 204 87 503 646 Entered New Map 4492 | . . . 40 225 33 . . 97 357 294 71 432 99 . 194 25 32 15 5 . 51 63 . 296 756 761 322 26 14 47 193 44 Time Decay 7126 | 35 322 160 617 422 . 224 383 . 695 140 592 565 . 189 20 110 144 70 15 60 119 43 192 546 100 278 110 313 180 . 140 342 Lost Part 630 | . . . 10 . . 10 30 . 40 . 160 50 . 20 . . . . . . . . 10 30 . . . . 10 20 . 240 Lost Ally 998 | . . . 50 . . . . . . . . . . 123 . . . . . . . . 245 380 40 20 80 . . 20 20 20 Purge Threat 328 | . . . . . . . . . . . . . . . . . . . . . . . 150 . . . . 28 . . 150 . Squads Dispatched 87 | . 4 . 5 . . . 1 . 14 . 13 . . 8 . 7 . . . . 3 . 8 5 . . 1 6 3 . 3 6 Investigation 27 | . 1 . 1 . . . . . . . . . . 5 . 5 . . . . 2 . 2 2 . . 1 3 . . 3 2 Extermination 11 | . . . . . . . . . . . 4 . . 1 . 1 . . . . 1 . 1 . . . . . 1 . . 2 Reinforcement 38 | . 3 . 4 . . . 1 . 13 . 3 . . 2 . 1 . . . . . . 2 2 . . . 3 2 . . 2 Assault 4 | . . . . . . . . . 1 . . . . . . . . . . . . . 2 1 . . . . . . . . Garrison 7 | . . . . . . . . . . . 6 . . . . . . . . . . . 1 . . . . . . . . . Intercept . | . . . . . . . . . . . . . . . . . . . . . . . . . . . . . . . . . Searches Triggered . | . . . . . . . . . . . . . . . . . . . . . . . . . . . . . . . . . Construction Impeded 5 | . . . 1 . . . . . . . 1 . . . . . . . . . . . . 1 . . . . 1 . . 1 Haulers Reinforced 3 | . . . . . . . . . . . . . . . . . . . . . . . 1 . . . . 1 . . . 1 Active Scanning Responses . | . . . . . . . . . . . . . . . . . . . . . . . . . . . . . . . . . Cargo Convoy Interrupts . | . . . . . . . . . . . . . . . . . . . . . . . . . . . . . . . . . Stealth | -11 -10 -10 -9 -9 -9 -8 -8 -8 -8 -7 -7 -7 -7 -5 -5 -5 -5 -5 -5 -4 -4 -4 -4 -4 -4 -4 -4 -3 -3 -3 -2 -2 --------- Run | Yrd Mat Min Mat Min Exi Min Mat Gar Mat Fac Sto Rec Scr Fac Was Fac Upp Upp Zhi Pro Fac Was Fac Ext Cet Arc Hub Res Qua Gar Res Tes Distress Signals 30 | . . . 7 . . . 2 . 1 . 3 . . 1 . . . . . . 1 . 2 3 2 . . 6 2 . . . Communications Jammed 30 | . . . . . . . . . . . . . . 1 . . . . . . . . . . . . 7 . . . 22 . Distress Signals 30 | . . . . . . . . . . . . . . 1 . . . . . . . . . . . . 7 . . . 22 . Times Spotted 488 | . 27 6 42 11 . 7 22 10 42 2 56 3 . 28 5 5 9 1 . 12 10 . 20 50 10 25 3 10 18 11 19 24 Peak Tracking Total 11 | . 3 2 5 3 . 4 5 3 4 2 5 1 . 10 5 2 5 1 . 5 6 . 4 7 5 2 2 3 9 5 11 6 Tactical Retreats 28 | . 1 . 1 . . . . . 2 . 1 . . 4 . 1 3 1 . 3 2 . 4 . . . . 1 1 . 1 2 ECM-based Alert Blocks 12 | . . . . . . . . . . . . . . 3 . . . . . 3 3 . . . . . . . . . . 3 Traps | -11 -10 -10 -9 -9 -9 -8 -8 -8 -8 -7 -7 -7 -7 -5 -5 -5 -5 -5 -5 -4 -4 -4 -4 -4 -4 -4 -4 -3 -3 -3 -2 -2 ------- Run | Yrd Mat Min Mat Min Exi Min Mat Gar Mat Fac Sto Rec Scr Fac Was Fac Upp Upp Zhi Pro Fac Was Fac Ext Cet Arc Hub Res Qua Gar Res Tes Traps Triggered 26 | . 1 . . . . . 2 9 . . . . . 2 . 1 . . . . 1 . . 2 . . . 8 . . . . Indirectly 7 | . . . . . . . . . . . . . . . . . . . . . . . . . . . . 7 . . . . Trap Hack Attempts . | . . . . . . . . . . . . . . . . . . . . . . . . . . . . . . . . . Triggered . | . . . . . . . . . . . . . . . . . . . . . . . . . . . . . . . . . Disarmed 6 | . . . . . . . . . . . . . . . . . . . . . . . 6 . . . . . . . . . Reprogrammed . | . . . . . . . . . . . . . . . . . . . . . . . . . . . . . . . . . Reused . | . . . . . . . . . . . . . . . . . . . . . . . . . . . . . . . . . Traps Extracted . | . . . . . . . . . . . . . . . . . . . . . . . . . . . . . . . . . Installed . | . . . . . . . . . . . . . . . . . . . . . . . . . . . . . . . . . Triggered . | . . . . . . . . . . . . . . . . . . . . . . . . . . . . . . . . . Most Traps Carried 2 | . . . . . . . . . . . . . 2 2 2 2 2 2 2 . . . . . . . . . . . . . Machines | -11 -10 -10 -9 -9 -9 -8 -8 -8 -8 -7 -7 -7 -7 -5 -5 -5 -5 -5 -5 -4 -4 -4 -4 -4 -4 -4 -4 -3 -3 -3 -2 -2 ---------- Run | Yrd Mat Min Mat Min Exi Min Mat Gar Mat Fac Sto Rec Scr Fac Was Fac Upp Upp Zhi Pro Fac Was Fac Ext Cet Arc Hub Res Qua Gar Res Tes Machines Disabled 70 | . 2 1 7 3 . 1 4 6 2 1 7 . . 8 . . . . . . . . 10 1 . 4 . . 6 . . 7 Max in Single Turn 4 | . 1 1 3 3 . 1 1 1 2 1 1 . . 4 . . . . . . . . 4 . . 1 . . 1 . . 1 Garrison Access 3 | . . . . . . . . . . . . . . . . . . . . . . . 1 . . . . 1 . . 1 . Garrison Relay 3 | . . . . . . . . 3 . . . . . . . . . . . . . . . . . . . . . . . . Network Hub 2 | . . . . . . . . . . . . . . . . . . . . . . . . . . . 2 . . . . . Energy Cycler 2 | . . . . . . . . . . . . . . . . . . . . . . . . 2 . . . . . . . . Machines Repaired . | . . . . . . . . . . . . . . . . . . . . . . . . . . . . . . . . . Machines Dismantled . | . . . . . . . . . . . . . . . . . . . . . . . . . . . . . . . . . Machines Sabotaged 1 | . . . . . . . . . . . . . . . . . . . . . . . . . . . 1 . . . . . Overloaded Fab Kills . | . . . . . . . . . . . . . . . . . . . . . . . . . . . . . . . . . Hacking | -11 -10 -10 -9 -9 -9 -8 -8 -8 -8 -7 -7 -7 -7 -5 -5 -5 -5 -5 -5 -4 -4 -4 -4 -4 -4 -4 -4 -3 -3 -3 -2 -2 --------- Run | Yrd Mat Min Mat Min Exi Min Mat Gar Mat Fac Sto Rec Scr Fac Was Fac Upp Upp Zhi Pro Fac Was Fac Ext Cet Arc Hub Res Qua Gar Res Tes Machines Accessed 132 | . 9 1 8 . . . 10 2 5 2 1 14 3 13 . 8 1 1 4 . 6 . 5 11 . . 2 10 3 1 5 7 Terminals 71 | . 6 1 7 . . . 6 2 3 2 . 6 . 7 . 3 . 1 . . 1 . 3 10 . . 2 4 2 1 1 3 Fabricators 8 | . . . . . . . . . . . . . . 1 . . . . . . 2 . 1 . . . . 2 . . . 2 Repair Stations 9 | . 1 . . . . . 1 . 1 . 1 . . 2 . . . . . . 1 . . . . . . 1 . . . 1 Recycling Units 24 | . 2 . . . . . 1 . . . . 8 . 3 . 4 . . . . 1 . 1 1 . . . . . . 3 . Scanalyzers 8 | . . . 1 . . . 1 . 1 . . . . . . 1 . . . . 1 . . . . . . 2 . . . 1 Garrison Access 4 | . . . . . . . 1 . . . . . . . . . . . . . . . . . . . . 1 1 . 1 . Total Hacks 350 | . 27 2 21 . . . 31 4 22 6 5 22 21 23 . 15 1 2 17 . 14 . 12 25 . . 4 34 8 1 11 22 Successful 211 | . 13 1 9 . . . 17 3 10 3 4 14 21 10 . 11 1 2 17 . 11 . 4 13 . . 3 20 3 1 8 12 Failed 137 | . 14 1 11 . . . 14 1 12 3 1 8 . 13 . 4 . . . . 3 . 8 12 . . 1 13 5 . 3 10 Catastrophic 23 | . 1 1 2 . . . 2 1 . . . 2 . 3 . 2 . . . . 1 . 2 2 . . 1 2 1 . . . Database Lockouts 2 | . . . 1 . . . . . . . . . . . . . . . . . . . . . . . . 1 . . . . Manual 179 | . 17 2 18 . . . 20 1 15 4 1 22 . 15 . 11 . . . . 5 . 7 17 . . 3 3 2 . 9 7 Terminals 194 | . 16 2 18 . . . 22 4 16 6 . 13 . 16 . 8 . 2 . . 1 . 8 24 . . 4 13 6 1 4 10 Fabricators 22 | . . . . . . . . . . . . . . 1 . . . . . . 9 . 1 . . . . 7 . . . 4 Repair Stations 30 | . 6 . . . . . 4 . 4 . 5 . . 2 . . . . . . 1 . . . . . . 3 . . . 5 Recycling Units 33 | . 5 . . . . . 1 . . . . 9 . 4 . 4 . . . . 1 . 3 1 . . . . . . 5 . Scanalyzers 25 | . . . 3 . . . 3 . 2 . . . . . . 3 . . . . 2 . . . . . . 9 . . . 3 Garrison Access 7 | . . . . . . . 1 . . . . . . . . . . . . . . . . . . . . 2 2 . 2 . Terminal Hacks 79 | . 2 1 1 . . . 2 2 1 1 . . 21 3 . 3 1 2 17 . . . 3 6 . . 1 4 1 1 2 4 Record 27 | . . . . . . . . . . . . . 20 . . . . 2 5 . . . . . . . . . . . . . Part Schematic 7 | . 1 . . . . . . . . . . . . 1 . . . . 4 . . . . 1 . . . . . . . . Robot Analysis 6 | . 1 1 . . . . . . . . . . . . . . . . 4 . . . . . . . . . . . . . Prototype ID Bank 5 | . . . . . . . 1 . . . . . . . . . . . 4 . . . . . . . . . . . . . Open Door 6 | . . . . . . . . . . . . . . . . . 1 . . . . . . 5 . . . . . . . . Level Access Points 1 | . . . . . . . . . . . . . . . . . . . . . . . . . . . 1 . . . . . Branch Access Points 5 | . . . 1 . . . . . . 1 . . . . . 1 . . . . . . 1 . . . . . . . 1 . Emergency Access Points 2 | . . . . . . . . 1 . . . . . . . . . . . . . . . . . . . . . 1 . . Machine Index 2 | . . . . . . . . . . . . . . . . . . . . . . . . . . . . . 1 . . 1 Terminal Index 1 | . . . . . . . . . . . . . . . . 1 . . . . . . . . . . . . . . . . Unreport Threat 3 | . . . . . . . . . . . . . . . . . . . . . . . 1 . . . . 1 . . 1 . Locate Traps 3 | . . . . . . . 1 . . . . . . 1 . . . . . . . . . . . . . . . . . 1 Disarm Traps 1 | . . . . . . . . . . . . . . . . . . . . . . . 1 . . . . . . . . . Recall Reinforcements 1 | . . . . . . . . . . . . . . . . . . . . . . . . . . . . 1 . . . . Hauler Manifests 1 | . . . . . . . . . . . . . . 1 . . . . . . . . . . . . . . . . . . Registered Components 2 | . . . . . . . . . . . . . . . . . . . . . . . . . . . . 1 . . . 1 Zone Layout 4 | . . . . . . . . . 1 . . . . . . 1 . . . . . . . . . . . 1 . . . 1 Security Stations 1 | . . . . . . . . 1 . . . . . . . . . . . . . . . . . . . . . . . . Proto ID Catalog 1 | . . . . . . . . . . . . . 1 . . . . . . . . . . . . . . . . . . . Fabricator Hacks 15 | . . . . . . . . . . . . . . . . . . . . . 6 . . . . . . 6 . . . 3 Network Status 2 | . . . . . . . . . . . . . . . . . . . . . 1 . . . . . . 1 . . . . Load Schematic 7 | . . . . . . . . . . . . . . . . . . . . . 3 . . . . . . 2 . . . 2 Build 6 | . . . . . . . . . . . . . . . . . . . . . 2 . . . . . . 3 . . . 1 Repair Station Hacks 19 | . 4 . . . . . 3 . 2 . 4 . . 1 . . . . . . 1 . . . . . . 2 . . . 2 Scan Component 9 | . 2 . . . . . 2 . 1 . 2 . . . . . . . . . . . . . . . . 1 . . . 1 Repair 8 | . 2 . . . . . 1 . 1 . 2 . . . . . . . . . . . . . . . . 1 . . . 1 Refit 2 | . . . . . . . . . . . . . . 1 . . . . . . 1 . . . . . . . . . . . Recycling Unit Hacks 2 | . 1 . . . . . 1 . . . . . . . . . . . . . . . . . . . . . . . . . Retrieve Components 2 | . 1 . . . . . 1 . . . . . . . . . . . . . . . . . . . . . . . . . Scanalyzer 16 | . . . 1 . . . 3 . 1 . . . . . . 3 . . . . 1 . . . . . . 6 . . . 1 Insert Component 5 | . . . . . . . . . . . . . . . . 2 . . . . . . . . . . . 3 . . . . Analyze 1 | . . . . . . . . . . . . . . . . 1 . . . . . . . . . . . . . . . . Retrieve Study 10 | . . . 1 . . . 3 . 1 . . . . . . . . . . . 1 . . . . . . 3 . . . 1 Garrison Access Hacks 5 | . . . . . . . 1 . . . . . . . . . . . . . . . . . . . . 1 1 . 2 . Unlock Access 2 | . . . . . . . 1 . . . . . . . . . . . . . . . . . . . . . 1 . . . Seal Access 2 | . . . . . . . . . . . . . . . . . . . . . . . . . . . . 1 . . 1 . Coupler Status 1 | . . . . . . . . . . . . . . . . . . . . . . . . . . . . . . . 1 . Unauthorized Hacks 75 | . 6 . 7 . . . 7 1 6 2 . 14 . 6 . 5 . . . . 3 . 1 7 . . 2 1 1 . 4 2 Terminals 49 | . 6 . 7 . . . 7 1 6 2 . 6 . 2 . 1 . . . . . . . 6 . . 2 1 1 . 1 . Botnet 21 | . 2 . 2 . . . 2 1 3 2 . 1 . 2 . 1 . . . . . . . 1 . . 1 1 1 . 1 . Skim 27 | . 4 . 5 . . . 5 . 3 . . 5 . . . . . . . . . . . 5 . . . . . . . . Sabotage 1 | . . . . . . . . . . . . . . . . . . . . . . . . . . . 1 . . . . . Fabricators 5 | . . . . . . . . . . . . . . 1 . . . . . . 2 . 1 . . . . . . . . 1 Prioritize 1 | . . . . . . . . . . . . . . . . . . . . . 1 . . . . . . . . . . . Recompile 4 | . . . . . . . . . . . . . . 1 . . . . . . 1 . 1 . . . . . . . . 1 Repair Stations 1 | . . . . . . . . . . . . . . . . . . . . . . . . . . . . . . . . 1 Patch 1 | . . . . . . . . . . . . . . . . . . . . . . . . . . . . . . . . 1 Recycling Units 20 | . . . . . . . . . . . . 8 . 3 . 4 . . . . 1 . . 1 . . . . . . 3 . Tunnel 8 | . . . . . . . . . . . . 8 . . . . . . . . . . . . . . . . . . . . Fedlink 12 | . . . . . . . . . . . . . . 3 . 4 . . . . 1 . . 1 . . . . . . 3 . Scanalyzers . | . . . . . . . . . . . . . . . . . . . . . . . . . . . . . . . . . Garrison Access . | . . . . . . . . . . . . . . . . . . . . . . . . . . . . . . . . . Data Cores Recovered . | . . . . . . . . . . . . . . . . . . . . . . . . . . . . . . . . . Used . | . . . . . . . . . . . . . . . . . . . . . . . . . . . . . . . . . Hacking Detections 83 | . 9 1 7 . . . 8 1 5 2 1 6 . 8 . 4 . . . . 2 . 4 6 . . 1 8 3 . 2 5 Full Trace Events 3 | . . . . . . . . . . . . . . 1 . . . . . . . . 1 . . . . 1 . . . . Feedback Events 1 | . . . . . . . . . . . . . . . . . . . . . . . 1 . . . . . . . . . Corruption 1 | . . . . . . . . . . . . . . . . . . . . . . . 1 . . . . . . . . . Feedback Blocked . | . . . . . . . . . . . . . . . . . . . . . . . . . . . . . . . . . Robot Schematics Acquired . | . . . . . . . . . . . . . . . . . . . . . . . . . . . . . . . . . Robots Built . | . . . . . . . . . . . . . . . . . . . . . . . . . . . . . . . . . Authchips . | . . . . . . . . . . . . . . . . . . . . . . . . . . . . . . . . . Time . | . . . . . . . . . . . . . . . . . . . . . . . . . . . . . . . . . Total Robot Build Rating . | . . . . . . . . . . . . . . . . . . . . . . . . . . . . . . . . . Part Schematics Acquired 8 | . 1 . . . . . . . . . . . . 1 . 1 . . 4 . . . . 1 . . . . . . . . Parts Built 8 | . . . . . . . . . . . . . . . . . . . . . 4 . . . . . . 3 . . . 1 Authchips 4 | . . . . . . . . . . . . . . . . . . . . . 2 . . . . . . 1 . . . 1 Time 358 | . . . . . . . . . . . . . . . . . . . . . 88 . . . . . . 214 . . . 56 Total Part Build Rating 50 | . . . . . . . . . . . . . . . . . . . . . 24 . . . . . . 20 . . . 6 Part Studies Acquired 10 | . . . 1 . . . 3 . 1 . . . . . . . . . . . 1 . . . . . . 3 . . . 1 Parts Repaired 8 | . 2 . . . . . 1 . 1 . 2 . . . . . . . . . . . . . . . . 1 . . . 1 Time 232 | . 52 . . . . . 26 . 38 . 70 . . . . . . . . . . . . . . . . 18 . . . 28 Parts Recycled . | . . . . . . . . . . . . . . . . . . . . . . . . . . . . . . . . . Recycled Matter . | . . . . . . . . . . . . . . . . . . . . . . . . . . . . . . . . . Retrieved Matter . | . . . . . . . . . . . . . . . . . . . . . . . . . . . . . . . . . Retrieved Components 11 | . 8 . . . . . 3 . . . . . . . . . . . . . . . . . . . . . . . . . Parts Scanalyzed 1 | . . . . . . . . . . . . . . . . 1 . . . . . . . . . . . . . . . . Part Schematics Acquired 1 | . . . . . . . . . . . . . . . . 1 . . . . . . . . . . . . . . . . Parts Damaged . | . . . . . . . . . . . . . . . . . . . . . . . . . . . . . . . . . Bothacking | -11 -10 -10 -9 -9 -9 -8 -8 -8 -8 -7 -7 -7 -7 -5 -5 -5 -5 -5 -5 -4 -4 -4 -4 -4 -4 -4 -4 -3 -3 -3 -2 -2 ------------ Run | Yrd Mat Min Mat Min Exi Min Mat Gar Mat Fac Sto Rec Scr Fac Was Fac Upp Upp Zhi Pro Fac Was Fac Ext Cet Arc Hub Res Qua Gar Res Tes Used RIF Installer 1 | . . . . . . . . . . . . . . . . . . . . . . . . . . . . . . 1 . . Robots Hacked 2 | . . . . . . . . . . . . 1 . 1 . . . . . . . . . . . . . . . . . . Non-combat 1 | . . . . . . . . . . . . . . 1 . . . . . . . . . . . . . . . . . . Combat 1 | . . . . . . . . . . . . 1 . . . . . . . . . . . . . . . . . . . . Robot Hacks Applied 2 | . . . . . . . . . . . . 1 . 1 . . . . . . . . . . . . . . . . . . parse_system 1 | . . . . . . . . . . . . 1 . . . . . . . . . . . . . . . . . . . . find_chute 1 | . . . . . . . . . . . . . . 1 . . . . . . . . . . . . . . . . . . Relay Couplers Released 20 | . . . . . . . . 12 . . 3 . . . . . . . . . . . 2 . . . . 2 . . 1 . Machine Destruction 17 | . . . . . . . . 12 . . . . . . . . . . . . . . 2 . . . . 2 . . 1 . Programmers 3 | . . . . . . . . . . . 3 . . . . . . . . . . . . . . . . . . . . . Fabnet Peak Effective % . | . . . . . . . . . . . . . . . . . . . . . . . . . . . . . . . . . Robots Rewired 44 | . . . . . . . . . . . . 18 . . . . . . . . . . . 25 . . . . . . . 1 Allies Hacked . | . . . . . . . . . . . . . . . . . . . . . . . . . . . . . . . . . Hacks Repelled . | . . . . . . . . . . . . . . . . . . . . . . . . . . . . . . . . . Allies | -11 -10 -10 -9 -9 -9 -8 -8 -8 -8 -7 -7 -7 -7 -5 -5 -5 -5 -5 -5 -4 -4 -4 -4 -4 -4 -4 -4 -3 -3 -3 -2 -2 -------- Run | Yrd Mat Min Mat Min Exi Min Mat Gar Mat Fac Sto Rec Scr Fac Was Fac Upp Upp Zhi Pro Fac Was Fac Ext Cet Arc Hub Res Qua Gar Res Tes Total Allies 77 | . . 3 . . . . . . . . . 18 . . . . . . . . . 20 . 33 . . . . . 2 . 1 Largest Group 22 | . . 3 3 . . . . . . . . 18 18 18 . . . . . . . 20 20 22 8 6 4 . . 2 1 1 Highest-Rated Group 977 | . . 40 40 . . . . . . . . 324 324 324 . . . . . . . 736 736 977 314 239 159 . . 175 95 166 Highest-Rated Ally 166 | . . 16 16 . . . . . . . . 40 40 40 . . . . . . . 50 50 159 51 51 46 . . 95 95 166 Initial Warlord ECA Mod 5 | . . . . . . . . . 5 4 4 4 4 . . . . . . . . . . . . . . . . . . . Total Orders 24 | . . . . . . . . . . . . . 2 1 . . . . . . . . . 10 2 2 6 . . . . 1 STAY 13 | . . . . . . . . . . . . . 1 1 . . . . . . . . . 4 1 1 4 . . . . 1 ROAM 1 | . . . . . . . . . . . . . . . . . . . . . . . . 1 . . . . . . . . FOLLOW 10 | . . . . . . . . . . . . . 1 . . . . . . . . . . 5 1 1 2 . . . . . Ally Attacks 502 | . . . 31 . . . . . . . . . . 12 . . . . . . . . 131 271 12 15 1 . . 16 3 10 Total Damage 11982 | . . . 319 . . . . . . . . . . 322 . . . . . . . . 2791 6027 252 465 . . . 653 185 968 Kills 67 | . . . 5 . . . . . . . . . . 2 . . . . . . . . 12 37 1 3 . . . 3 . 4 Allies Corrupted 5 | . . . . . . . . . . . . . . . . . . . . . . . 2 1 . . 1 . . . . 1 Allies Melted 1 | . . . . . . . . . . . . . . . . . . . . . . . 1 . . . . . . . . . Intel | -11 -10 -10 -9 -9 -9 -8 -8 -8 -8 -7 -7 -7 -7 -5 -5 -5 -5 -5 -5 -4 -4 -4 -4 -4 -4 -4 -4 -3 -3 -3 -2 -2 ------- Run | Yrd Mat Min Mat Min Exi Min Mat Gar Mat Fac Sto Rec Scr Fac Was Fac Upp Upp Zhi Pro Fac Was Fac Ext Cet Arc Hub Res Qua Gar Res Tes Active Infowar (turns) 10595 | . . . . . . . 775 . . 281 116 . 1024 595 41 228 304 313 95 337 336 393 466 1637 217 611 220 876 379 322 288 741 Optics 8015 | . . . . . . . . . . . . . . 211 41 228 304 313 95 337 336 393 466 1637 217 611 220 876 379 322 288 741 Sensors 25 | . . . . . . . . . . . . . . 25 . . . . . . . . . . . . . . . . . . Structural 584 | . . . . . . . . . . . . . . . . . . . . . . . . . . . . 1 . . . 583 Seismic 6438 | . . . . . . . 775 . . 281 116 . 579 531 38 228 304 311 73 195 331 375 190 . . 233 218 653 279 2 195 531 Cloaking 1881 | . . . . . . . . . . . . . . . . . . . . . . 99 292 . . . . 858 273 . 279 80 Jamming 2502 | . . . . . . . . . . . . . 1024 293 . 10 . . . . . . . . . 219 220 357 86 . 225 68 ECM 1719 | . . . . . . . . . . . . . 1023 278 15 . . . . 135 21 179 . . . . . . . . . 68 Robot Analysis Total 6 | . 1 1 . . . . . . . . . . . . . . . . 4 . . . . . . . . . . . . . Derelict Logs Recovered 6 | . . 1 . 1 . . . . . . . . . . . . 1 2 . 1 . . . . . . . . . . . . Drone Launches . | . . . . . . . . . . . . . . . . . . . . . . . . . . . . . . . . . Drone Recoveries . | . . . . . . . . . . . . . . . . . . . . . . . . . . . . . . . . . Exploration | -11 -10 -10 -9 -9 -9 -8 -8 -8 -8 -7 -7 -7 -7 -5 -5 -5 -5 -5 -5 -4 -4 -4 -4 -4 -4 -4 -4 -3 -3 -3 -2 -2 ------------- Run | Yrd Mat Min Mat Min Exi Min Mat Gar Mat Fac Sto Rec Scr Fac Was Fac Upp Upp Zhi Pro Fac Was Fac Ext Cet Arc Hub Res Qua Gar Res Tes Turns Passed 28884 | 191 2150 1633 2110 1314 360 1060 1622 564 2882 282 1865 1688 2697 618 41 228 304 322 95 337 336 393 466 1637 217 611 220 876 379 322 288 776 Spaces Moved 18751 | 85 766 486 709 599 181 502 637 232 589 129 555 697 1299 1122 104 708 910 978 194 528 924 409 560 1155 178 400 248 1070 344 337 353 763 Core 159 | 3 . . . . . . . . . . . . 138 . . . . . . . . . . . . . . . . . . 18 Treads 7396 | 82 766 486 709 599 181 502 637 232 589 129 555 697 1161 71 . . . . . . . . . . . . . . . . . . Legs . | . . . . . . . . . . . . . . . . . . . . . . . . . . . . . . . . . Wheels 5 | . . . . . . . . . . . . . . 5 . . . . . . . . . . . . . . . . . . Hover 5611 | . . . . . . . . . . . . . . . . . . . . . . 221 560 1155 178 400 248 1070 344 337 353 745 Flight 5580 | . . . . . . . . . . . . . . 1046 104 708 910 978 194 528 924 188 . . . . . . . . . . Fastest Speed 22 | 50 160 320 200 200 200 200 200 203 203 207 203 205 50 22 22 22 22 22 22 22 22 23 55 55 55 55 55 55 56 56 56 44 Average Speed 110 | 156 244 320 226 200 200 200 208 203 207 207 209 205 196 36 25 22 22 22 22 22 23 44 56 55 55 55 55 57 57 56 56 58 Slowest Speed 320 | 160 320 320 320 200 200 200 277 203 250 210 250 205 280 231 92 22 92 22 22 22 97 68 61 55 55 55 55 59 123 56 56 290 Overloaded Moves 20 | . . . . . . . . . . . . . . . . . . . . . . . . . . . . . . . . 20 Propulsion Burnouts . | . . . . . . . . . . . . . . . . . . . . . . . . . . . . . . . . . Robots Hopped 16 | . . . . . . . . . . . . . . 2 . 6 1 . . . 7 . . . . . . . . . . . Potential Cave-ins 2 | . . . . . . . . . . . . . . . . . . . . . . . . . . . . . 2 . . . Cave-ins Triggered . | . . . . . . . . . . . . . . . . . . . . . . . . . . . . . . . . . Exploration Rate (%) 60 | 5 97 98 86 98 57 93 73 59 27 4 77 91 83 31 77 26 87 82 61 80 15 94 14 88 61 100 23 30 51 48 19 59 Regions Visited 32 Branch Regions 17 Pre-discovered Areas 29 | . . . 2 1 . . 4 . . . 1 9 5 1 . . 1 1 3 1 . . . . . . . . . . . . Known Exits Taken 16 | . . . 1 . . 1 1 . 1 1 1 1 . . . 1 . . . 1 . . 1 1 . 1 1 1 1 . 1 . Unknown Exits Taken 10 | 1 1 1 . 1 1 . . . . . . . 1 . . . 1 1 1 . . . . . 1 . . . . . . . Scrap Searched 17 | . . 1 . 3 . 1 . . . . . . 3 . . . 3 3 . 3 . . . . . . . . . . . . Spaces Dug 342 | . 2 10 35 2 . 29 21 17 14 . 18 . . 52 . 11 3 5 . 3 6 3 6 22 14 . 2 9 7 15 12 24 Terrain Destroyed 1094 | . 2 33 39 27 . 83 84 49 195 1 116 2 . 52 . 11 7 5 . 62 9 5 41 145 14 13 2 18 12 16 16 35 Melee 54 | . . . . . . . . . . . 6 . . 19 . 11 3 5 . 3 4 . . . . . . . 3 . . . Projectile 204 | . 2 . . 20 . 1 24 . 24 1 1 2 . . . . . . . . 5 5 12 32 . 13 2 18 9 4 16 13 AOE 832 | . . 33 39 7 . 82 60 49 171 . 109 . . 33 . . 4 . . 59 . . 29 113 14 . . . . 12 . 18 Terrain Rammed . | . . . . . . . . . . . . . . . . . . . . . . . . . . . . . . . . . Walls Destroyed . | . . . . . . . . . . . . . . . . . . . . . . . . . . . . . . . . . Machines Disabled . | . . . . . . . . . . . . . . . . . . . . . . . . . . . . . . . . . Actions | -11 -10 -10 -9 -9 -9 -8 -8 -8 -8 -7 -7 -7 -7 -5 -5 -5 -5 -5 -5 -4 -4 -4 -4 -4 -4 -4 -4 -3 -3 -3 -2 -2 --------- Run | Yrd Mat Min Mat Min Exi Min Mat Gar Mat Fac Sto Rec Scr Fac Was Fac Upp Upp Zhi Pro Fac Was Fac Ext Cet Arc Hub Res Qua Gar Res Tes Total 25252 | 113 942 516 1072 666 182 532 836 292 2109 151 945 906 1457 1287 116 741 1002 1076 233 731 1030 604 665 2034 287 736 327 1287 489 448 417 1023 Wait 4132 | . 91 . 206 25 . 1 64 4 1365 . 99 52 83 57 . 15 81 94 13 184 57 128 40 683 81 266 73 98 61 76 15 120 Move 18691 | 84 765 485 708 598 180 501 636 231 588 128 554 696 1298 1118 103 695 907 977 193 527 911 408 559 1154 177 399 247 1069 343 336 353 763 Hop 15 | . . . . . . . . . . . . . . 2 . 6 1 . . . 6 . . . . . . . . . . . Pick Up 230 | 7 17 2 14 2 1 2 12 2 13 7 18 3 37 10 . . . . 4 . 11 9 7 3 2 4 . 19 7 3 6 8 Fast Attach 153 | 5 3 1 6 . . . 8 1 6 . 25 3 5 11 6 . 3 . 5 1 5 8 4 2 4 6 1 11 4 1 2 16 Attach 118 | 1 . . 1 . . 1 6 . 6 2 9 4 10 10 . . . . 1 1 5 9 2 3 . 2 . 7 11 4 2 21 Detach 39 | . . . . . . . . . . . 4 . . 3 . . . . . 1 3 3 . . . . . 2 10 1 1 11 Swap 281 | . 8 3 22 2 . 6 24 9 22 4 30 4 3 15 2 5 3 . 2 10 8 5 13 16 6 . 3 19 12 3 6 16 Drop 318 | . 5 . 32 4 1 2 21 2 23 9 27 2 21 30 5 . 3 . 7 . 12 15 13 3 8 8 1 25 11 3 9 16 Fire 877 | 13 48 19 69 32 . 14 60 25 80 1 167 17 . 2 . . 1 . . 2 4 17 21 67 9 51 2 37 23 21 23 52 Melee 104 | . . . . . . . . . . . 9 7 . 29 . 19 3 5 8 5 8 . 6 . . . . . 5 . . . Ram 2 | . . . . . . . . . . . . . . . . . . . . . . . . . . . . . 2 . . . Kick . | . . . . . . . . . . . . . . . . . . . . . . . . . . . . . . . . . Crush 56 | 3 5 6 14 3 . 5 5 . 6 . 3 6 . . . . . . . . . . . . . . . . . . . . Escape Stasis 24 | . . . . . . . . 18 . . . . . . . . . . . . . . . 6 . . . . . . . . Rewire 211 | . . . . . . . . . . . . 112 . . . . . . . . . 2 . 97 . . . . . . . . Trap . | . . . . . . . . . . . . . . . . . . . . . . . . . . . . . . . . . Miscellaneous 1 | . . . . . . . . . . . . . . . . 1 . . . . . . . . . . . . . . . . Route ------- -11/Scrapyard -10/Materials (discovered 5 exits: *Mat x3 / *Min x2) -10/Mines (discovered 2 exits: *Mat x2) -9/Materials (discovered 5 exits: *Mat x3 / *Min x2) -9/Mines (discovered 3 exits: *Mat x2 / [*Exi]) -9/Exiles -8/Mines (discovered 2 exits: *Mat x2) -8/Materials (discovered 4 exits: *Fac x3 / Gar) -8/Garrison (discovered 2 exits: *Mat x2) -8/Materials -7/Factory (discovered 3 exits: *Sto / Low x2) -7/Storage (discovered 2 exits: [*Fac] / *Rec) -7/Recycling (discovered 2 exits: *Fac / *Scr) -7/Scraptown (discovered 2 exits: *Fac x2) -5/Factory (discovered 4 exits: Fac x2 / *Upp x2) -5/Waste -5/Factory (discovered 2 exits: *Upp x2) -5/Upper Caves -5/Upper Caves (discovered 2 exits: *Fac / *Zhi) -5/Zhirov -4/Proximity Caves -4/Factory (discovered 2 exits: Upp / Ext) -4/Waste -4/Factory (discovered 5 exits: Upp x2 / *Ext x2 / Arm) -4/Extension (discovered 3 exits: *Res x2 / *Cet) -4/Cetus (discovered 2 exits: *Res / [*Arc]) -4/Archives (discovered 3 exits: *Res / *Hub x2) -4/Hub_04(d) (discovered 4 exits: *Res x4) -3/Research (discovered 4 exits: Res x2 / *Qua x2) -3/Quarantine (discovered 2 exits: *Res / Gar) -3/Garrison -2/Research (discovered 2 exits: *Tes x2) -2/Testing (discovered 1 exit: [*Acc]) History --------- Turn | Location | Event 6 | -11/Scrapyard | Discovered new exit (range 14) 192 | -11/Scrapyard | Entered Materials 240 | -10/Materials | Discovered new exit (range 9) 280 | -10/Materials | Discovered new exit (range 15) 307 | -10/Materials | Build established: Mutant 722 | -10/Materials | Discovered new exit (range 5) 1333 | -10/Materials | Discovered new exit (range 3) 1508 | -10/Materials | Discovered new exit (range 6) 1735 | -10/Materials | Repaired Lgt. Treads 1763 | -10/Materials | Repaired Lgt. Treads 2342 | -10/Materials | Entered Mines 2419 | -10/Mines | Learned 2 Materials zone layouts 2739 | -10/Mines | Discovered new exit (range 12) 2790 | -10/Mines | Discovered new exit (range 7) 3199 | -10/Mines | Received a Rocket Launcher from a helpful Derelict 3629 | -10/Mines | Assisted by bots powering up and referring to "LRC-V3" 3975 | -10/Mines | Entered Materials 3975 | -9/Materials | Accompanied by 3 allies 3975 | -9/Materials | Evolved 2 slots: Propulsion x1, Utility x1 4365 | -9/Materials | Build established: Scavenger-Mutant 4549 | -9/Materials | Discovered new exit (range 8) 4912 | -9/Materials | Discovered new exit (range 15) 4968 | -9/Materials | Discovered new exit (range 15) 5237 | -9/Materials | Central database locked down 5322 | -9/Materials | Discovered new exit (range 16) 5662 | -9/Materials | Identified exit to Mines 5723 | -9/Materials | Build established: Mutant 5736 | -9/Materials | Learned 2 Materials zone layouts 5855 | -9/Materials | Learned 4 Materials zone layouts 5898 | -9/Materials | Identified exit to Materials 5930 | -9/Materials | Learned location of Zion (-6) 5962 | -9/Materials | Learned location of 1 exit from Storage 5980 | -9/Materials | Learned Materials stockpile data 6009 | -9/Materials | Learned Storage security intel 6047 | -9/Materials | Loaded intel: 2 recycling unit locations 6085 | -9/Materials | Entered Mines 6086 | -9/Mines | Assembled infested the area 6198 | -9/Mines | Discovered exit to Materials (range 8) 6415 | -9/Mines | Learned location of 1 exit from Materials 7208 | -9/Mines | Discovered exit to Materials (range 12) 7211 | -9/Mines | Learned location of Storage (-7) 7391 | -9/Mines | Discovered new exit (range 5) 7399 | -9/Mines | Entered Exiles 7447 | -9/Exiles | Met 8R-AWN 7481 | -9/Exiles | Met EX-HEX 7557 | -9/Exiles | Met EX-DEC 7733 | -9/Exiles | Discovered new exit (range 14) 7759 | -9/Exiles | Entered Mines 8104 | -8/Mines | Discovered exit to Materials (range 2) 8160 | -8/Mines | Discovered exit to Materials (range 13) 8199 | -8/Mines | Core integrity fell below 50% 8819 | -8/Mines | Entered Materials 8819 | -8/Materials | Evolved 2 slots: Utility x2 8820 | -8/Materials | Identified exit to Factory 8865 | -8/Materials | Repaired Lgt. Treads+ 9385 | -8/Materials | Destroyed 7 combat bots 9494 | -8/Materials | Discovered exit to Factory (range 5) 10087 | -8/Materials | Learned Factory emergency access door positions 10136 | -8/Materials | Learned Storage trap positions 10208 | -8/Materials | Learned Storage garrison access intel 10230 | -8/Materials | Learned Storage stockpile data 10239 | -8/Materials | Identified exit to Garrison 10297 | -8/Materials | Learned location of Recycling (-7) 10340 | -8/Materials | Learned location of 1 exit from Extension 10415 | -8/Materials | Build established: Scientist-Mutant 10441 | -8/Materials | Entered Garrison 10525 | -8/Garrison | Garrison Relay disabled 10549 | -8/Garrison | Triggered checkpoint 10641 | -8/Garrison | Discovered new exit (range 8) 10665 | -8/Garrison | Learned Materials security intel 10763 | -8/Garrison | Triggered checkpoint 10897 | -8/Garrison | Garrison Relay disabled 10952 | -8/Garrison | Discovered new exit (range 10) 11005 | -8/Garrison | Entered Materials 11240 | -8/Materials | Repaired Hrd. Medium Armor Plating 13094 | -8/Materials | Build established: Scavenger-Mutant 13634 | -8/Materials | Core integrity fell below 50% 13658 | -8/Materials | Lost 3 parts (2u1w) 13802 | -8/Materials | Discovered exit to Factory (range 9) 13805 | -8/Materials | First assault squad dispatched 13887 | -8/Materials | Entered Factory 13887 | -7/Factory | Evolved 2 slots: Propulsion x1, Utility x1 14145 | -7/Factory | Identified exit to Storage 14145 | -7/Factory | Identified exit to Lower Caves 14169 | -7/Factory | Entered Storage 14170 | -7/Storage | Identified exit to Recycling 14171 | -7/Storage | Loaded intel: 25 trap records 14173 | -7/Storage | Loaded intel: 1 garrison access location 14308 | -7/Storage | Garrison activated, responded to threat 14618 | -7/Storage | Lost 3 parts (2u1w) 14744 | -7/Storage | Repaired Hrd. Heavy Armor Plating 14771 | -7/Storage | Repaired Seismic Detector 14859 | -7/Storage | Used back door to open Recycling access 15239 | -7/Storage | Discovered new exit (range 8) 15274 | -7/Storage | Found Prototype Launcher 15274 | -7/Storage | Identified Rocket Array 15433 | -7/Storage | Garrison activated, responded to threat 15450 | -7/Storage | Lost 3 parts (1n2u) 15621 | -7/Storage | Learned location of Armory (-4) 16019 | -7/Storage | System corruption reached 10% 16034 | -7/Storage | Entered Recycling 16047 | -7/Recycling | Core integrity fell below 50% 16890 | -7/Recycling | Discovered new exit (range 9) 17164 | -7/Recycling | Identified exit to Scraptown 17231 | -7/Recycling | Learned location of 1 exit from Cetus 17235 | -7/Recycling | Lost 3 parts (1n2u) 17377 | -7/Recycling | Learned location of 2 exits from Archives 17404 | -7/Recycling | Learned location of Upper Caves (-4) 17488 | -7/Recycling | Learned Factory interactive machine intel 17545 | -7/Recycling | Learned Hub_04(d) trap positions 17601 | -7/Recycling | Build established: Commander-Mutant 17644 | -7/Recycling | Scanned before Scraplab entrance 17674 | -7/Recycling | Entered Scraplab 17722 | -7/Recycling | Entered Scraptown 17722 | -7/Scraptown | Accompanied by 18 allies 17722 | -7/Scraptown | System corruption cleaned by C-Scrubber 18018 | -7/Scraptown | Discovered new exit (range 13) 18184 | -7/Scraptown | Visited IN-MT5's Study 18630 | -7/Scraptown | Visited UFD Registry 18630 | -7/Scraptown | Registered with UFD as "Steeldisc" 18703 | -7/Scraptown | Visited Science Guys 18774 | -7/Scraptown | Visited Scrapoid Pod Storage 18808 | -7/Scraptown | Visited Observation Area 18838 | -7/Scraptown | Visited Scrap Suit Storage 18905 | -7/Scraptown | Visited Supply Room 18928 | -7/Scraptown | Visited Scrapoid Research Area 18982 | -7/Scraptown | Visited Derelict Rescue Squad 19019 | -7/Scraptown | Visited Science Testing Area 19057 | -7/Scraptown | Visited Cartography Club 19180 | -7/Scraptown | Learned location of Lower Caves (-7) 19180 | -7/Scraptown | Learned location of Warlord (-4) 19180 | -7/Scraptown | Learned 4 Recycling zone layouts 19180 | -7/Scraptown | Learned 12 Lower Caves zone layouts 19180 | -7/Scraptown | Learned 8 Proximity Caves zone layouts 19180 | -7/Scraptown | Learned 12 Proximity Caves zone layouts 19180 | -7/Scraptown | Learned 20 Proximity Caves zone layouts 19180 | -7/Scraptown | Learned Research emergency access door positions 19180 | -7/Scraptown | Learned location of 2 exits from Factory 19180 | -7/Scraptown | Learned location of 1 exit from Research 19180 | -7/Scraptown | Learned location of 3 exits from Lower Caves 19196 | -7/Scraptown | Found Deep Structural Scanner 20170 | -7/Scraptown | Found DRS Beacon 20282 | -7/Scraptown | Met Optimus 20282 | -7/Scraptown | Accepted into 0bPrime 20390 | -7/Scraptown | Discovered new exit (range 3) 20419 | -7/Scraptown | Entered Factory 20419 | -5/Factory | Accompanied by 18 allies 20419 | -5/Factory | Evolved 4 slots: Power x1, Propulsion x2, Utility x1 20420 | -5/Factory | Identified exit to Upper Caves 20421 | -5/Factory | Identified exit to Factory 20422 | -5/Factory | Loaded intel: 54 interactive machine locations 20556 | -5/Factory | Loaded intel: 8 recycling unit locations 20676 | -5/Factory | Lost 9 allies 20708 | -5/Factory | Learned location of Protoforge (-2) 21037 | -5/Factory | Manually triggered Chute Trap 21037 | -5/Factory | Sucked down chute 21037 | -5/Factory | Entered Waste 21045 | -5/Waste | Spotted C-40 Crusher 21047 | -5/Waste | Spotted C-40 Crusher 21048 | -5/Waste | Spotted C-40 Crusher 21048 | -5/Waste | Spotted C-40 Crusher 21052 | -5/Waste | EMP discharged 21065 | -5/Waste | Spotted C-40 Crusher 21071 | -5/Waste | Found Corrupted Prototype Hackware 21071 | -5/Waste | Identified Exp. Hacking Suite 21072 | -5/Waste | System corruption reached 10% 21076 | -5/Waste | Discovered new exit (range 11) 21078 | -5/Waste | Entered Factory 21094 | -5/Factory | Build established: Hacker-Sprinter 21143 | -5/Factory | Loaded intel: 8 recycling unit locations 21306 | -5/Factory | Entered Upper Caves 21417 | -5/Upper Caves | Encountered a Warlord checkpoint 21424 | -5/Upper Caves | Discovered new exit (range 5) 21610 | -5/Upper Caves | Entered another Upper Caves area 21620 | -5/Upper Caves | Discovered exit to Factory (range 11) 21702 | -5/Upper Caves | Spotted B-75 Beast 21862 | -5/Upper Caves | Discovered new exit (range 13) 21863 | -5/Upper Caves | Attracted the attention of an 0b10 checkpoint 21932 | -5/Upper Caves | Entered Zhirov 21932 | -5/Zhirov | Discovered new exit (range 3) 21936 | -5/Zhirov | Met Zhirov 21941 | -5/Zhirov | Learned location of Quarantine (-3) 21941 | -5/Zhirov | Learned location of Testing (-2) 21941 | -5/Zhirov | Learned location of Command (-1) 21943 | -5/Zhirov | Zhirov requested help retrieving the SGEMP Prototype 21946 | -5/Zhirov | Found Alien Artifact 21946 | -5/Zhirov | Identified Integrated Dissipator 21946 | -5/Zhirov | Installed Integrated Dissipator, increased core heat dissipation (+20) 22006 | -5/Zhirov | Found Alien Artifact 22027 | -5/Zhirov | Entered Proximity Caves 22293 | -4/Proximity Caves | Attracted the attention of an 0b10 checkpoint 22364 | -4/Proximity Caves | Entered Factory 22364 | -4/Factory | Evolved 2 slots: Propulsion x1, Utility x1 22365 | -4/Factory | Identified exit to Upper Caves 22365 | -4/Factory | Identified exit to Extension 22424 | -4/Factory | Found Prototype Hackware 22467 | -4/Factory | Fabricated Cmb. Gravmag System? 22536 | -4/Factory | Loaded intel: 8 recycling unit locations 22562 | -4/Factory | Spotted B-86 Titan 22564 | -4/Factory | Identified Exp. System Shield 22604 | -4/Factory | Fabricated Cmb. Gravmag System (x2) 22700 | -4/Factory | Manually triggered Chute Trap 22700 | -4/Factory | Sucked down chute 22700 | -4/Factory | Entered Waste 22701 | -4/Waste | Joined by Warlord forces that had cleared the area 22791 | -4/Waste | Discovered new exit (range 12) 22797 | -4/Waste | Found Prototype Device 22797 | -4/Waste | Identified Exp. Cloaking Device 22949 | -4/Waste | Found Gamma Bomb Array 23093 | -4/Waste | Entered Factory 23093 | -4/Factory | Accompanied by 20 allies 23095 | -4/Factory | Build established: Hacker-Mutant 23180 | -4/Factory | Garrison activated, responded to threat 23229 | -4/Factory | Identified exit to Armory 23233 | -4/Factory | Lost 4 allies 23434 | -4/Factory | Lost 7 allies 23515 | -4/Factory | Lost 6 allies 23559 | -4/Factory | Entered Extension 23560 | -4/Extension | Identified exit to Cetus 23683 | -4/Extension | Rescued A7 23686 | -4/Extension | Rescued a captive Derelict 23687 | -4/Extension | Rescued a captive Derelict 23703 | -4/Extension | Rescued a captive Derelict 23790 | -4/Extension | Rescued a captive Derelict 23790 | -4/Extension | Rescued a captive Derelict 24157 | -4/Extension | Spotted B-86 Titan 24184 | -4/Extension | Allies destroyed B-86 Titan 24189 | -4/Extension | Spotted B-86 Titan 24228 | -4/Extension | Allies destroyed B-86 Titan 24235 | -4/Extension | Extracted ID and sensor layout for unrecognized location from A7's data core 24258 | -4/Extension | Lost 4 allies 24316 | -4/Extension | Rescued a captive Derelict 24319 | -4/Extension | Rescued a captive Derelict 24606 | -4/Extension | Energy Cycler disabled 24641 | -4/Extension | Lost 4 allies 24652 | -4/Extension | Build established: Commander-Mutant 24717 | -4/Extension | Lost 8 allies 24862 | -4/Extension | Identified exit to Research 24931 | -4/Extension | Learned 2 Armory zone layouts 24989 | -4/Extension | Learned location of 3 exits from Research 25039 | -4/Extension | Learned location of 2 exits from Upper Caves 25059 | -4/Extension | First assault squad dispatched 25080 | -4/Extension | Learned location of 2 exits from Proximity Caves 25088 | -4/Extension | Loaded intel: 1 recycling unit location 25136 | -4/Extension | High security lockdown imminent 25147 | -4/Extension | Discovered exit to Research (range 10) 25174 | -4/Extension | Lost 3 allies 25196 | -4/Extension | Entered Cetus 25196 | -4/Cetus | Accompanied by 8 allies 25210 | -4/Cetus | Spotted Cetus Guard 25211 | -4/Cetus | Spotted Cetus Guard 25213 | -4/Cetus | Spotted Cetus Guard 25215 | -4/Cetus | Spotted Cetus Guard 25229 | -4/Cetus | Destroyed Cetus Guard 25230 | -4/Cetus | Destroyed Cetus Guard 25231 | -4/Cetus | Destroyed Cetus Guard 25231 | -4/Cetus | Destroyed Cetus Guard 25260 | -4/Cetus | Discovered new exit (range 22) 25327 | -4/Cetus | Spotted Cetus Guard 25328 | -4/Cetus | Spotted Cetus Guard 25328 | -4/Cetus | Spotted Cetus Guard 25332 | -4/Cetus | Spotted Cetus Guard 25336 | -4/Cetus | Destroyed Cetus Guard 25336 | -4/Cetus | Destroyed Cetus Guard 25337 | -4/Cetus | Destroyed Cetus Guard 25338 | -4/Cetus | Destroyed Cetus Guard 25346 | -4/Cetus | Met Revision 17 25380 | -4/Cetus | System corruption reached 10% 25413 | -4/Cetus | Entered Archives 25413 | -4/Archives | Accompanied by 6 allies 25414 | -4/Archives | Identified exit to Hub_04(d) 25487 | -4/Archives | Discovered exit to Research (range 13) 25883 | -4/Archives | Build established: Scavenger-Mutant 26024 | -4/Archives | Entered Hub_04(d) 26024 | -4/Hub_04(d) | Accompanied by 4 allies 26025 | -4/Hub_04(d) | Loaded intel: 25 trap records 26145 | -4/Hub_04(d) | Network Hub disabled 26208 | -4/Hub_04(d) | Lost 3 allies 26224 | -4/Hub_04(d) | Network Hub disabled 26244 | -4/Hub_04(d) | Entered Research 26244 | -3/Research | Evolved 2 slots: Utility x2 26245 | -3/Research | Identified exit to Quarantine 26245 | -3/Research | Identified exit to Research 26268 | -3/Research | Central database locked down 26444 | -3/Research | Revision forces began assault on 0b10 26499 | -3/Research | Met up with Revision 17++ 26580 | -3/Research | Found Prototype Launcher 26649 | -3/Research | Fabricated Cld. Gravmag System (x1) 26707 | -3/Research | Fabricated Cld. Gravmag System (x1) 26765 | -3/Research | Spotted B-90 Cyclops 26794 | -3/Research | Destroyed B-90 Cyclops 26844 | -3/Research | Build established: Hacker-Mutant 26874 | -3/Research | Identified Com. Tesla Bomb Launcher 26896 | -3/Research | Found Prototype Device 26909 | -3/Research | Identified Exp. Thermal Shield 26937 | -3/Research | Fabricated Cld. Antigrav System? 26944 | -3/Research | Research terminal network offline 26998 | -3/Research | Repaired Cmb. Gravmag System+ 27011 | -3/Research | Found Prototype Launcher 27011 | -3/Research | Identified Tesla Bomb Launcher 27080 | -3/Research | Spotted Striker 27120 | -3/Research | Entered Quarantine 27177 | -3/Quarantine | Found Alien Artifact 27216 | -3/Quarantine | Found Alien Artifact 27219 | -3/Quarantine | Found Alien Artifact 27340 | -3/Quarantine | Found Alien Slashing Weapon 27340 | -3/Quarantine | Identified Sigix Broadsword 27443 | -3/Quarantine | Discovered exit to Research (range 8) 27470 | -3/Quarantine | Found Alien Energy Cannon 27472 | -3/Quarantine | System corruption reached 10% 27490 | -3/Quarantine | Identified exit to Garrison 27499 | -3/Quarantine | Entered Garrison 27511 | -3/Garrison | Found embedded Infiltrators 27592 | -3/Garrison | Triggered checkpoint 27610 | -3/Garrison | Triggered checkpoint 27641 | -3/Garrison | Destroyed 8 combat bots 27642 | -3/Garrison | Spotted B-86 Titan 27642 | -3/Garrison | Spotted B-86 Titan 27704 | -3/Garrison | Discovered exit to Research (range 9) 27727 | -3/Garrison | Installed Relay Interface Framework 27821 | -3/Garrison | Entered Research 27821 | -2/Research | Accompanied by 1 ally 27821 | -2/Research | Evolved 2 slots: Utility x1, Weapon x1 27822 | -2/Research | Identified exit to Testing 27843 | -2/Research | Loaded intel: 5 recycling unit locations 28109 | -2/Research | Entered Testing 28171 | -2/Testing | Repaired Cmb. Gravmag System+? 28188 | -2/Testing | Spotted Striker 28286 | -2/Testing | Rewired PX-QUPC0PEJPR 28509 | -2/Testing | Found Prototype Launcher 28509 | -2/Testing | Identified Z-bomb Delivery System 28516 | -2/Testing | Fabricated Cld. Gravmag System? 28621 | -2/Testing | Found Prototype Ballistic Cannon 28621 | -2/Testing | Identified Perforator 28645 | -2/Testing | Discovered new exit (range 12) 28676 | -2/Testing | Spotted PH-GO7ELJF8KV 28708 | -2/Testing | System corruption reached 10% 28727 | -2/Testing | Found Prototype Hackware 28727 | -2/Testing | Identified Ghost Barrier 28793 | -2/Testing | Destroyed PH-GO7ELJF8KV 28825 | -2/Testing | Core integrity fell below 50% 28850 | -2/Testing | Released all parts (7) 28853 | -2/Testing | System corruption reached 30% 28869 | -2/Testing | Core integrity fell below 20% 28871 | -2/Testing | Released all parts (1) 28880 | -2/Testing | Lost 24 parts (6p7n6u5w) 28885 | -2/Testing | Destroyed by H-88 Terminator with KE Penetrator Last Messages --------------- 28868_ G-73 Enforcer destroyed. 28869_ U-05 Engineer lays Concrete. 28870_ Acquired 65 matter. 28870_ Slug penetrates Wall. 28870_ U-05 Engineer lays Concrete. 28871_ Released KE Penetrator. 28873_ Penetrated by Slug. 28873_ Slug penetrates Earth. 28875_ Dropped Seismic Detector. 28875_ U-05 Engineer builds a Wall. 28875_ Penetrated by Slug. 28876_ Acquired Alien Artifact. 28878_ GOJ91AJMZQZ>2SDNZZOV 28879_ Acquired Alien Artifact. 28879_ Slug penetrates Wall. 28882_ Penetrated by Slug. 28883_ The unstable cave ceiling collapses. 28883_ Acquired 25 matter. 28884_ Acquired 21 matter. 28884_ Penetrated by Slug. Map ----- +----------------------------------------------------+ | + ???? # # ???????????????????? | | # ???? ######+### ???????????????????? | | / ??? ### ???????????????????? | | # ???? ### ???????????????????? | | #######+######????#### ???????????????????? | | # ????#### ???????????????????? | | # ????#### ####???????????????????? | | # """ ??????????#### ####???????????????????? | | # """ ""S"" ####### # ""???????????????????? | | # """ """" ####### + ""???????????????????? | | # ####### # "???????????????????? | | #######+#####+######## # ???????????????????? | | ###### #### # ???????????????????? | | ###### #### # ""???????????????????? | | ###### """"""" #### ###########????????????? | | # # """ """" #### ###########????????????? | | # # "" *!="" #### ###########????????????? | | # # "" $%""" #### ###########????????????? | | # # !$! #### # """""####????????????? | | # # #### # " " "####????????????? | | # # #### # "####????????????? | | # # [ #### # ""#####????????????? | | + # = #### # " #######??????????? | | # # * #### / " " #### #??????????? | | ############+#######;# #####"#### ##??????????? | | Rh % % @######"##"#####????????? | | h !# ######????????? | | | ! # ######????????? | | =%= h=; ######????????? | | ######+### ######## ![ # ! ==" ##????????? | | # ###### # [ [![!=!# ####????????? | | # ######## ! =!!!!" ##????????? | | # ######## ] [ # #????????? | | """"""" # ######## %= !![[ ######????????? | | """"""" # ######## % ! " ##?????????? | | """"""" # ##"##### # # ##" #?????????? | | # ## ### ### #?????????? | | ##+####### ## "## # ######?????????? | | # # ## ### # # # #####?????????? | | # # ## ### ##############?????????? | | # # ## ### # ???????????????????? | | # # ## ### # ???????????????????? | | # + ## ### # ???????????????????? | | # # < ## ### # ???????????????????? | | # # ## ## + ???????????????????? | | # # + ## # ???????????????????? | | # = ###### ## # ???????????????????? | | ################T #### # ???????????????????? | | ###################### # ???????????????????? | | ###################### ##+#???????????????????? | +----------------------------------------------------+ Best States ------------- Heat Dissipation 107 Energy Generation 46 Energy Capacity 780 Matter Stores 300 Matter Capacity 300 Sight Range 23 Robot Scan Range 16 Terrain Scan Density 10 ECM Strength 1 Jamming Range 16 Cloak Strength 4 Armor Coverage 750 Resistance: TH 10 Propulsion Shielding 66 Weapon Shielding 90 Phase Shifting 15 Evasion (%) 67 Targeting Accuracy 20 Core Analysis 6 Recoil Reduction 4 Particle Charging 30 Offensive Hacking 30 Defensive Hacking 20 Authchip Count 1 Trap Extractor Capacity 6 Item Schematics ----------------- Hcp. Storage Unit | -10/Materials | Hacked Cmb. Gravmag System | -5/Factory | Hacked CPS Tube | -5/Factory | Scanalyzed Exp. Heat Sink | -5/Zhirov | Free Assault Drone Bay | -5/Zhirov | Free Exp. Optical Array | -5/Zhirov | Free Imp. Arc Thrower | -5/Zhirov | Free Cld. Gravmag System | -4/Extension | Hacked Robot Schematics ------------------ None Fabricated ------------ Cmb. Gravmag System | x2 | -4/Factory | Authchip Cmb. Gravmag System | x2 | -4/Factory | Authchip Cld. Gravmag System | x1 | -3/Research | Authchip Cld. Gravmag System | x1 | -3/Research Cld. Antigrav System | x1 | -3/Research | Preloaded Cld. Gravmag System | x1 | -2/Testing | Authchip Repaired ---------- Lgt. Treads | 22% | -10/Materials Lgt. Treads | 69% | -10/Materials Lgt. Treads | 36% | -8/Materials Hrd. Medium Armor Plating | 14% | -8/Materials Hrd. Heavy Armor Plating | 8% | -7/Storage Seismic Detector | 30% | -7/Storage Cmb. Gravmag System | 47% | -3/Research Cmb. Gravmag System | 34% | -2/Testing Studied --------- Lgt. Treads | -9/Materials | Hacked Hvy. Particle Cannon | -8/Materials | Hacked Imp. Treads | -8/Materials | Hacked Arm. Treads | -8/Materials | Hacked Hvy. Assault Rifle | -8/Materials | Hacked Cmb. Gravmag System | -4/Factory | Hacked Cmb. Linear Gravjet | -3/Research | Hacked Particle Reactor | -3/Research | Hacked Antimatter Reactor | -3/Research | Hacked Lgt. Quantum Reactor | -2/Testing | Hacked Alien Tech Used ----------------- Integrated Dissipator Sigix Broadsword Achievements -------------- Late Bloomer Challenges ------------ None Game ------ Seed ScatterMobileSegregator Manual? 0 Play Time 04:26:24 Cumulative 359.6 hours Start 2026.02.06 @ 02:07:04 End 2026.02.08 @ 02:59:22 Sessions 6 Manual Loads 0 Difficulty Rogue Special Mode None Game No. 137 Rogue 136 Adventurer 1 Explorer 0 Win Type - Total 15 Types 6/2/2/0/1/0/2/1/0/1 Lore% 61 Gallery% 82 Achievement% 69 Wizard Run 0 Options --------- Layout 0 ASCII 0 Keyboard 0 Movement Arrows Keybinds 0 Fullscreen 2 Font 24/Smallcaps Map View 76x50 Zoom Use 0% Tactical HUD 1 Map Filters NONE Filters NONE Steam 1 RUN: 0c178c17-ecf4-411d-875d-e31a2a1ed684